Cogmind - Beta 10.1 @@@ ROGUE MODE // 2020.09.29 @ 13:41:11 Player: Alexbot Result: Heading to fleet! Performance ------------- Evolutions (9) 4500 Regions Visited (33) 6600 Robots Destroyed (430) 2150 Value Destroyed (26015) 26015 Prototype IDs (107) 2140 Alien Tech Used (14) 2800 Bonus (47466) 47466 TOTAL SCORE: 91671 Bonus ------- Triggered High Security 500 High Alert Combat Kills 3431 Follower Combat Kills 2103 Network Hubs Disabled 400 Aligned with FarCom 300 Met Data Miner 300 Met Warlord at Base 500 MAIN.C Attacked Warlord 500 Warlord Defense Kill 922 Built Enhanced Grunts 300 A7 Reached Mainframe 300 Met R17 at Cetus 500 Used Core Reset Matrix 3000 Met Warlord at Research 2000 Hacked God Mode 5000 Met Sigix 2000 Destroyed MAIN.C Guards 500 Met MAIN.C 5000 Destroyed MAIN.C Shell 5000 Destroyed MAIN.C 10000 Met Architect 300 Destroyed A8 300 Destroyed A6 400 Destroyed A5 500 Destroyed A2 1000 Win 3000 Friendly Fire -590 Cogmind --------- Core Integrity 26/1600 Matter 64/300 Energy 558/560 System Corruption 4% Temperature Cool (2) Movement Flying (99) Ox1 Location To Fleet Rendezvous Parts ------- > --- POWER (3) -------- Micro Fission Core Zero-point Reactor > --- PROPULSION (4) --- Impulse Thruster Array Cooled Q-thruster > --- UTILITY (17) ----- Experimental Power Amplifier Experimental Power Amplifier Large Storage Unit Large Storage Unit Gravity Neutralizing Apparatus Gravity Neutralizing Apparatus Advanced Terrain Scan Processor Experimental Targeting Computer Experimental Melee Analysis Suite Experimental Target Analyzer Experimental Core Analyzer Advanced Armor Integrity Analyzer Femtoactuators Experimental Powered Armor Beam Splitter > --- WEAPON (2) ------- Plasma Lance > --- INVENTORY (16) --- Experimental Energy Well (1000) Experimental Matter Compressor (0) Experimental Weapon Cycler AEGIS Remote Shield Matter Drive Stasis Generator Core Cannon Perforator Peak State ------------ > --- POWER ------------ Micro Fission Core Zero-point Reactor > --- PROPULSION ------- Cooled Field Propulsion Drive Impulse Thruster Array Cooled Q-thruster > --- UTILITY ---------- Large Storage Unit Large Storage Unit Experimental Energy Well Gravity Neutralizing Apparatus Gravity Neutralizing Apparatus Long-range Terrain Scanner Advanced Terrain Scan Processor Experimental Melee Analysis Suite Experimental Target Analyzer Experimental Core Analyzer Advanced Armor Integrity Analyzer Experimental Weapon Cycler Femtoactuators Experimental Phase Shifter Matter Drive Stasis Generator > --- WEAPON ----------- Perforator > --- INVENTORY -------- Experimental Matter Compressor Precision Matter Filter Experimental Powered Armor Beam Splitter EM Dispersion Field AEGIS Remote Shield EMDS Core Cannon Plasma Lance Plasma Lance [Rating: 224] Favorites ----------- Power Micro Fission Core Engine Ion Engine Power Core Micro Fission Core Reactor Zero-point Reactor Propulsion Impulse Thruster Array Treads Light Treads Leg Enhanced Flexi-carbon Leg Wheel Compact Wheel Hover Unit Combat Antigrav System Flight Unit Impulse Thruster Array Utility Large Storage Unit Device Experimental Sensor Array Storage Large Storage Unit Processor Advanced Terrain Scan Processor Hackware Improved Hacking Suite Protection Experimental Utility Shielding Artifact Stasis Generator Weapon Plasma Lance Energy Gun EM Pulse Gun Energy Cannon Heavy Particle Cannon Ballistic Gun Improved KE Penetrator Ballistic Cannon Assault Cannon Launcher Mini Grenade Launcher Special Weapon Advanced Remote Datajack Slashing Weapon Great Axe Piercing Weapon Plasma Lance Build | -11 -10 -10 -10 -9 -8 -7 -7 -7 -7 -6 -6 -5 -5 -5 -5 -5 -5 -4 -4 -4 -4 -4 -4 -4 -4 -3 -3 -2 -2 -2 -1 -1 -1 ------- Run | Scr Mat Min Exi Min Mat Fac Low Low Dat Pro Fac Fac Was Fac Upp Upp War Pro Fac Was Fac Ext Cet Arc Hub Res Tes Res Qua Sec Acc Com Ac0 Slots Evolved 18 | . . . . . 4 2 . . . . 2 2 . . . . . . 2 . . . . . . 2 . 2 . . 2 . . Power 1 | . . . . . . . . . . . . . . . . . . . 1 . . . . . . . . . . . . . . Propulsion 2 | . . . . . . . . . . . . 2 . . . . . . . . . . . . . . . . . . . . . Utility 15 | . . . . . 4 2 . . . . 2 . . . . . . . 1 . . . . . . 2 . 2 . . 2 . . Weapon . | . . . . . . . . . . . . . . . . . . . . . . . . . . . . . . . . . . Parts Attached 842 | . 2 4 2 5 9 21 8 7 11 9 41 16 1 31 7 13 16 8 56 2 10 8 12 8 62 75 35 23 48 26 45 83 138 Power 46 | . . . 1 1 . 2 1 1 1 . 2 2 . 1 . 1 . . 2 . . 2 1 . 4 6 2 . 5 2 . 7 2 Engine 4 | . . . 1 1 . . . . . . 1 1 . . . . . . . . . . . . . . . . . . . . . Core 17 | . . . . . . 2 1 1 . . . 1 . 1 . 1 . . 1 . . 1 . . 3 . 1 . 3 . . 1 . Reactor 25 | . . . . . . . . . 1 . 1 . . . . . . . 1 . . 1 1 . 1 6 1 . 2 2 . 6 2 Propulsion 74 | . . 2 . . 2 7 . . 2 . 7 7 . 7 2 . 2 . 9 1 1 . 3 . 1 7 6 . 1 . 3 4 . Treads 9 | . . 2 . . 1 . . . . . . . . . . . . . . . . . 1 . 1 2 2 . . . . . . Leg 9 | . . . . . 1 1 . . 2 . 3 . . . . . . . . . . . 2 . . . . . . . . . . Wheel 8 | . . . . . . 6 . . . . 2 . . . . . . . . . . . . . . . . . . . . . . Hover 33 | . . . . . . . . . . . . 7 . 7 2 . 2 . 9 1 1 . . . . 2 . . . . . 2 . Flight 15 | . . . . . . . . . . . 2 . . . . . . . . . . . . . . 3 4 . 1 . 3 2 . Utility 482 | . 1 1 1 1 6 7 6 3 6 4 25 4 1 17 3 8 7 5 35 . 4 3 3 6 44 47 23 10 34 10 26 48 83 Device 304 | . . . . . 1 2 2 1 3 3 13 2 . 4 3 6 3 4 21 . 2 1 1 5 31 30 13 8 25 6 20 35 59 Storage 41 | . 1 . 1 1 1 1 1 . 1 . 2 . . 4 . . 1 . 7 . . . . . 3 6 7 . . 1 . 2 1 Processor 26 | . . . . . 1 1 2 . 1 . 1 1 . 5 . . 1 . 4 . . . . . 1 3 . . 1 . . 3 1 Hackware 21 | . . . . . . . . . . . 5 1 1 2 . . . . 1 . . 1 . . . 4 1 1 1 . 3 . . Protection 74 | . . 1 . . 3 3 1 2 1 1 4 . . 2 . 2 2 1 2 . 2 1 2 1 9 4 2 1 7 3 3 8 6 Artifact 16 | . . . . . . . . . . . . . . . . . . . . . . . . . . . . . . . . . 16 Weapon 240 | . 1 1 . 3 1 5 1 3 2 5 7 3 . 6 2 4 7 3 10 1 5 3 5 2 13 15 4 13 8 14 16 24 53 Energy Gun 5 | . . . . . . . . . . . . . . . . . . . . . . . . . 2 3 . . . . . . . Energy Cannon 53 | . . . . 2 . 2 . . 1 1 3 2 . 2 1 2 4 1 2 . 1 1 1 . 2 6 3 2 1 1 . 5 7 Ballistic Gun 9 | . 1 . . . . . . . . . . . . . . . . . . . . 1 1 1 3 2 . . . . . . . Ballistic Cannon 52 | . . . . . . 1 . 2 . . . 1 . 2 . 1 . . 2 1 . . 1 . 1 . . 4 3 5 5 3 20 Launcher 19 | . . 1 . 1 . 1 1 1 . 1 . . . 1 . 1 1 2 1 . 2 . 2 . 3 . . . . . . . . Special Weapon 13 | . . . . . . . . . . 3 2 . . . . . . . 1 . . . . . . . . 2 . . 4 1 . Impact Weapon . | . . . . . . . . . . . . . . . . . . . . . . . . . . . . . . . . . . Slashing Weapon 8 | . . . . . 1 . . . 1 . . . . 1 . . . . . . . . . . . . . . 3 2 . . . Piercing Weapon 81 | . . . . . . 1 . . . . 2 . . . 1 . 2 . 4 . 2 1 . 1 2 4 1 5 1 6 7 15 26 Special Melee Weapon . | . . . . . . . . . . . . . . . . . . . . . . . . . . . . . . . . . . Unidentified Prototypes 56 | . . . . . 1 . 1 . 2 1 . . . . . . 6 . 5 . . . 3 . 5 3 5 4 4 . 2 8 6 Parts Lost 97 | . 1 1 . 1 5 13 . 2 . 1 17 1 . 6 . 1 3 1 2 . 2 . 2 . 2 18 . 1 1 1 . . 15 Power 14 | . . . . 1 1 2 . 1 . . 2 . . . . . . . . . . . . . . 4 . . 1 . . . 2 Propulsion 22 | . . 1 . . 1 4 . . . . 5 . . 3 . . . 1 . . 1 . 1 . . 4 . . . . . . 1 Utility 40 | . . . . . 1 3 . 1 . . 8 1 . 2 . . 1 . 2 . . . 1 . 1 7 . 1 . . . . 11 Weapon 21 | . 1 . . . 2 4 . . . 1 2 . . 1 . 1 2 . . . 1 . . . 1 3 . . . 1 . . 1 Highest Loss Streak 14 | . 1 1 . 1 4 6 . 2 . 1 14 1 . 2 . 1 2 1 1 . 2 . 2 . 1 8 . 1 1 1 . . 5 Average Slot Usage (%) 89 | . 98 99 100 97 80 88 98 99 96 95 87 52 74 95 96 93 91 96 91 97 99 94 81 93 85 79 85 84 83 73 82 90 87 Engine 1 | . 14 14 14 11 2 . . . . . . . . . . . . . . . . . . . . . . . 1 . . . . Core 3 | . . . . . . 3 5 6 5 . . 1 5 5 5 5 5 5 5 5 5 5 5 5 7 3 3 4 4 . . 1 3 Reactor 2 | . . . . . . . . . . 7 5 . . . . . . . 3 5 5 5 5 5 2 2 4 3 . 3 3 4 4 Treads 3 | . . 22 28 28 11 . . . . . . . . . . . . . . . . . 4 5 7 3 . . . . . . . Leg 3 | . 28 5 . . 5 5 7 7 8 15 12 . . . . . . . . . . . . 10 7 1 . . . . . . . Hover 3 | . . . . . . . . . . . . 13 23 22 19 16 17 19 16 21 20 15 . . . 4 . . . . . . . Flight 3 | . . . . . . . . . . . . 7 . . . . . . . . . . . . . 1 8 8 7 8 7 10 10 Device 10 | . . . . . . 7 1 6 7 13 10 6 5 3 8 9 5 4 4 5 3 1 2 14 6 12 20 19 10 10 12 20 25 Storage 18 | . 26 16 14 27 26 27 31 30 31 30 25 5 5 13 17 17 20 23 20 21 21 21 21 21 21 15 10 13 13 12 11 11 9 Processor 14 | . . . . . 4 10 7 7 7 15 16 6 11 15 17 17 17 17 17 15 15 15 15 15 15 18 20 17 17 16 15 19 21 Hackware 7 | . . . . . . . . . . . 4 . 9 17 13 11 11 11 12 15 15 15 10 5 3 7 5 12 16 13 21 5 . Protection 4 | . . 11 14 . 14 7 19 13 12 1 . . . 2 . 1 1 . . . 1 3 6 . 4 . . 1 5 4 3 6 2 Energy Cannon 1 | . . . . 12 2 1 . . 3 3 . 2 5 1 3 4 . 1 . . . . . . . 1 . . . . . . . Ballistic Gun 1 | . 11 14 14 6 . . . . . . . . . . . . . . . . . . . 4 1 . . . . . . . . Launcher 1 | . . 11 14 9 6 5 . . . . . . . . . . 1 3 . . 2 . . . . . . . . . . . . Piercing Weapon 3 | . . . . . . . 7 7 7 2 5 . . . 1 . 2 5 5 5 7 9 3 4 2 2 6 2 1 . 2 5 2 Naked Turns . | . . . . . . . . . . . . . . . . . . . . . . . . . . . . . . . . . . Heaviest Build 141 | 12 21 21 27 45 63 88 102 102 102 96 104 30 29 57 52 62 68 57 106 91 102 99 130 129 141 113 84 92 71 66 88 112 113 Greatest Support 120 | 20 20 20 20 40 40 32 16 16 56 56 56 57 57 120 60 90 100 100 110 110 112 112 80 80 108 108 84 78 66 76 76 88 120 Greatest Overweight (x) 9 | . 1 1 1 2 3 7 6 6 6 1 9 . . . 1 1 . . 1 . 1 1 3 1 1 3 1 1 4 . 1 3 2 Average Overweight (x) . | . . . . 1 2 4 5 5 4 1 1 . . . . . . . . . . . 1 1 . . . . . . . . . Largest Inventory Capacity 34 | . 10 10 10 16 22 28 34 34 28 28 28 4 4 22 18 18 22 22 26 26 26 26 26 26 28 28 22 22 22 22 22 22 16 Average Capacity 21 | . 9 8 8 15 21 26 29 28 28 28 27 4 4 12 18 18 20 22 22 26 26 26 26 26 27 20 16 22 22 22 22 18 16 Most Carried 31 | . 10 10 10 15 22 28 31 31 28 28 28 4 4 18 18 18 22 22 25 26 26 26 26 26 28 28 22 22 22 22 22 22 16 Average Carried 20 | . 6 8 8 13 19 23 28 28 26 27 26 2 3 11 17 17 20 21 21 25 25 25 25 25 25 17 15 21 21 21 21 17 14 Final Capacity 34 | 6 10 8 10 16 22 28 34 28 28 28 4 4 4 18 18 18 22 22 26 26 26 26 26 26 28 16 22 22 22 22 22 16 16 Final Carried 31 | 6 10 8 10 15 22 27 31 28 28 26 2 3 4 18 18 17 22 22 25 26 24 25 26 26 27 15 22 22 22 22 22 16 11 Class Distribution -------------------- 28% | Scavenger-Mutant 14% | Hauler-Mutant 12% | Hacker-Mutant 11% | Mutant 6% | Scavenger-Sprinter 5% | Scavenger-Scout 3% | Hacker-Scout Dominant Class ---------------- Mutant | -10/Materials Mutant | -10/Mines Mutant | -10/Exiles Mutant | -9/Mines Hauler-Mutant | -8/Materials Hauler-Mutant | -7/Factory Hauler-Mutant | -7/Lower Caves Hauler-Mutant | -7/Lower Caves Hauler-Mutant | -7/Data Miner Hauler-Skirmisher | -6/Proximity Caves Hauler-Assassin | -6/Factory Mutant | -5/Factory Hacker-Mutant | -5/Waste Hacker-Mutant | -5/Factory Hacker-Scout | -5/Upper Caves Hacker-Scout | -5/Upper Caves Scavenger-Mutant | -5/Warlord Scavenger-Mutant | -4/Proximity Caves Scavenger-Mutant | -4/Factory Scavenger-Mutant | -4/Waste Scavenger-Mutant | -4/Factory Scavenger-Mutant | -4/Extension Scavenger-Mutant | -4/Cetus Scavenger-Mutant | -4/Archives Scavenger-Mutant | -4/Hub_04(d) Scavenger-Mutant | -3/Research Scavenger-Ninja | -3/Testing Scavenger-Ninja | -2/Research Hacker-Mutant | -2/Quarantine Hacker-Mutant | -2/Section 7 Wizard-Mutant | -1/Access Scavenger-Scout | -1/Command Scavenger-Sprinter | -1/Access_0 Resources | -11 -10 -10 -10 -9 -8 -7 -7 -7 -7 -6 -6 -5 -5 -5 -5 -5 -5 -4 -4 -4 -4 -4 -4 -4 -4 -3 -3 -2 -2 -2 -1 -1 -1 ----------- Run | Scr Mat Min Exi Min Mat Fac Low Low Dat Pro Fac Fac Was Fac Upp Upp War Pro Fac Was Fac Ext Cet Arc Hub Res Tes Res Qua Sec Acc Com Ac0 Matter Collected 21844 | 200 71 194 20 134 180 462 137 188 207 37 498 374 . 502 70 258 334 169 1012 327 108 244 318 420 2312 1446 783 1222 1650 1070 1655 1570 3672 Remotely . | . . . . . . . . . . . . . . . . . . . . . . . . . . . . . . . . . . Salvage Created 24598 | . 217 111 . 527 328 491 85 44 261 170 588 398 . 1537 93 327 550 315 1363 848 341 581 133 366 2741 2636 824 764 1040 808 1886 1363 2862 Parts 1189 | . 21 12 . 35 22 17 6 1 11 5 34 9 . 63 5 15 34 10 64 7 10 31 4 26 137 119 49 26 57 37 83 74 165 Haulers Intercepted 12 | . . . . . . . . . . . 1 1 . 1 . . . . 4 . . . . . 1 . 2 . . . 2 . . Recyclers Shooed 11 | . 1 1 . . . . . . . . . 2 . 3 . . . . . . . . . . . 3 . . . 1 . . . Parts Field Recycled . | . . . . . . . . . . . . . . . . . . . . . . . . . . . . . . . . . . Retrieved Matter . | . . . . . . . . . . . . . . . . . . . . . . . . . . . . . . . . . . Parts Self-Destructed 69 | . . . . . . . 4 1 . 4 . . . . 1 4 55 . . . . . . . . . . . . . . . . Prevented 35 | . . . . . . . . . . . . . . . 2 1 24 8 . . . . . . . . . . . . . . . Kills | -11 -10 -10 -10 -9 -8 -7 -7 -7 -7 -6 -6 -5 -5 -5 -5 -5 -5 -4 -4 -4 -4 -4 -4 -4 -4 -3 -3 -2 -2 -2 -1 -1 -1 ------- Run | Scr Mat Min Exi Min Mat Fac Low Low Dat Pro Fac Fac Was Fac Upp Upp War Pro Fac Was Fac Ext Cet Arc Hub Res Tes Res Qua Sec Acc Com Ac0 Combat Hostiles Destroyed 318 | . 6 13 . 15 8 14 4 1 3 5 7 . . 11 2 13 8 7 17 3 4 6 3 2 46 33 6 7 11 8 10 14 31 Melee 75 | . . . . . 2 3 . . . . 2 . . 3 1 . . . 11 . . 6 . . 7 12 6 1 2 . 1 10 8 Guns 18 | . 5 1 . 1 . . . . . . . . . . . . . . . . . . . . 10 1 . . . . . . . Cannons 105 | . . . . 5 . 4 1 1 . 1 3 . . 3 1 . 1 . 2 3 1 . 1 2 12 9 . 6 9 7 9 2 22 AOE 89 | . 1 12 . 9 6 6 3 . . 2 2 . . 3 . 11 6 6 4 . 2 . 2 . 13 . . . . 1 . . . Classes Destroyed 25 | . 5 2 . 1 5 2 1 . . 1 1 . . . 1 . 1 . . 1 . . . . 1 . . 2 . . . 1 . Worker 24 | . 1 . . . . 2 . . . . 2 2 . 1 . . . . . . 1 . . . 11 2 . 1 . . 1 . . Builder 14 | . 1 . . 3 3 . . . . . 1 . . . . . . . . . . 3 . . 1 1 . . . 1 . . . Tunneler 6 | . . . . 2 . . . . . . . . . 1 . . . . 2 . 1 . . . . . . . . . . . . Hauler 12 | . . . . . . . . . . . 1 1 . 1 . . . . 4 . . . . . 1 . 2 . . . 2 . . Recycler 21 | . . . . . 1 . . . . . . 2 . 6 . . . . . . . 1 . . 2 1 1 . . 1 5 1 . Minesweeper 1 | . . . . . . . 1 . . . . . . . . . . . . . . . . . . . . . . . . . . Operator 11 | . 1 . . . 1 . . . . . . . . . . . . . . . . . . 6 1 . . . 1 . 1 . . Watcher 20 | . . . . . 1 . . . . . 2 . . 1 . . . . 2 . . . 1 . 1 3 1 2 3 . 3 . . Swarmer 42 | . 3 6 . . . 3 3 . . . . . . . . 5 3 1 4 . . 1 1 . 8 4 . . . . . . . Saboteur 1 | . . . . . . . . . . . . . . . . . . . . . . . . . 1 . . . . . . . . Grunt 94 | . 3 2 . 12 4 5 . . . 2 2 . . 4 . 6 2 2 3 . . . 1 . 20 12 . 4 5 2 2 1 . Brawler 5 | . . . . . 1 1 . . . . . . . 1 . 1 . . . . . . . . . 1 . . . . . . . Duelist 4 | . . . . . . 1 . . . . 2 . . . . . . 1 . . . . . . . . . . . . . . . Protector 1 | . . . . . . . . . . . . . . . . . . . . . . . . . . . . 1 . . . . . Sentry 37 | . . . . . 2 2 . . . . 1 . . 3 1 1 . 1 4 . . 5 . 2 3 3 . . . 3 5 1 . Demolisher 1 | . . 1 . . . . . . . . . . . . . . . . . . . . . . . . . . . . . . . Specialist 2 | . . . . . . . . . . 2 . . . . . . . . . . . . . . . . . . . . . . . Hunter 24 | . . . . . 1 1 1 . . . . . . . . . 1 2 . . 4 . . . 4 6 . . . 2 2 . . Programmer 42 | . . . . . . 1 . 1 . 1 2 . . 3 . . 1 . 6 . . . . . 4 7 6 . 3 . 1 6 . Behemoth 1 | . . . . . . . . . . . . . . . . . . . . . . . . . . . . . . . . 1 . Compactor 3 | . . . . . . . . . . . . . . . . . . . . 3 . . . . . . . . . . . . . Cetus Guard 1 | . . . . . . . . . . . . . . . . . . . . . . . 1 . . . . . . . . . . S7 Guard 1 | . . . . . . . . . . . . . . . . . . . . . . . . . . . . . . 1 . . . M Guard 2 | . . . . . . . . . . . . . . . . . . . . . . . . . . . . . . . . 2 . Enhanced Grunt 23 | . . . . . . . . . 3 . . . . . . . . . . . . . . . . . . . . . . . 20 Enhanced Hunter 7 | . . . . . . . . . . . . . . . . . . . . . . . . . . . . . . . . . 7 Lightning 9 | . . . . . . . . . . . . . . . . . . . . . . . . . 6 . . . 3 . . . . Combat Programmer 2 | . . . . . . . . . . . . . . . . . . . . . . . . . . . . . . . . 2 . Striker 1 | . . . . . . . . . . . . . . . . . 1 . . . . . . . . . . . . . . . . Master Thief 1 | . . . . . . . . . . . . . . . 1 . . . . . . . . . . . . . . . . . . Assembled 7 | . . 4 . 3 . . . . . . . . . . . . . . . . . . . . . . . . . . . . . Bouncer 2 | . . . . . . . . . . . . . . . . . 2 . . . . . . . . . . . . . . . . Knight 1 | . . . . . . . . . . . . . . . . . . . . . . . . . . . . 1 . . . . . Best Kill Streak 17 | . 4 10 . 5 11 4 3 1 3 3 3 2 . 6 1 9 4 5 5 3 4 3 2 2 17 17 3 6 3 4 4 3 3 Combat Bots Only 15 | . 3 10 . 4 6 3 3 1 2 3 3 . . 4 1 9 4 5 4 3 2 2 2 2 11 15 3 5 3 2 4 2 3 Max Kills in Single Turn 7 | . 2 2 . 3 5 2 1 1 1 2 2 1 . 4 1 7 2 2 2 1 2 1 1 1 4 1 1 1 2 3 3 2 2 Gunslinging 1 | . . . . . . . . . . . . . . . . . . . . . . . . . 1 . . . . . . . . Exploded 7 | . 1 2 . 2 2 2 1 . . 2 2 . . 2 . 7 2 2 2 . 1 . 1 . 4 . . . . 1 . . . Melee 1 | . . . . . 1 1 . . . . 1 . . 1 1 . . . 1 . . 1 . . 1 1 1 1 1 . 1 1 1 Uniques/NPCs Destroyed 8 | . . . . . . . . . 1 . . . . . . . . . . . . . . . . . . 1 . . . 2 4 Data Miner (-7/Data Miner) Warlord (-2/Research) MAIN.C Shell (-1/Command) MAIN.C (-1/Command) A8 (-1/Access_0) A6 (-1/Access_0) A2 (-1/Access_0) A5 (-1/Access_0) Combat | -11 -10 -10 -10 -9 -8 -7 -7 -7 -7 -6 -6 -5 -5 -5 -5 -5 -5 -4 -4 -4 -4 -4 -4 -4 -4 -3 -3 -2 -2 -2 -1 -1 -1 -------- Run | Scr Mat Min Exi Min Mat Fac Low Low Dat Pro Fac Fac Was Fac Upp Upp War Pro Fac Was Fac Ext Cet Arc Hub Res Tes Res Qua Sec Acc Com Ac0 Damage Taken 29052 | . 333 267 . 286 946 1598 209 530 118 422 3263 75 . 1009 123 333 848 295 1038 . 537 287 899 . 2456 5221 512 469 666 645 265 560 4842 Core 5208 | . 94 54 . 12 245 323 . 149 39 64 769 . . 264 . 14 40 25 205 . 63 67 107 . 154 1085 104 92 . 104 66 115 954 Absorbed by Shields 3317 | . . . . . . . . . . . . . . . . . . . 513 . . 227 . . 478 399 420 . 115 513 . 256 396 Reduced by Siege Mode 410 | . . . . . . . . . . . . . . . . . . . . . . . . . 70 307 33 . . . . . . Core Remaining (%) 42 | 100 . . . 36 55 . . . . 17 9 . . . . . . 65 . . . . . . 48 . 8 . . 84 . . 1 Volleys Fired 771 | . 24 20 . 31 26 41 11 5 8 14 18 19 . 29 4 22 20 12 15 15 13 5 13 3 156 70 8 17 21 13 16 25 77 Largest 2 | . 2 2 . 2 1 1 1 1 1 1 1 2 . 2 1 1 1 1 1 1 1 1 1 1 2 2 1 1 1 1 1 1 1 Hottest 300 | . 80 60 . 95 75 80 44 44 69 69 75 155 . 155 75 75 90 52 57 57 100 100 100 90 100 150 113 113 113 300 100 300 300 Shots Fired 839 | . 47 26 . 34 26 41 11 6 8 15 18 22 . 34 5 22 20 12 15 14 13 5 13 7 170 78 8 17 21 13 16 25 77 Gun 217 | . 47 12 . 3 . . . . . . . . . . . . . . . . . 4 . 4 119 27 . . 1 . . . . Cannon 492 | . . . . 21 16 27 6 6 8 2 16 22 . 32 5 12 7 . 13 14 3 1 10 3 44 51 8 16 20 13 16 23 77 Launcher 118 | . . 14 . 10 10 14 5 . . 6 . . . 2 . 10 13 12 2 . 10 . 3 . 7 . . . . . . . . Special 12 | . . . . . . . . . . 7 2 . . . . . . . . . . . . . . . . 1 . . . 2 . Kinetic 399 | . 19 6 . 3 . 16 6 6 . . . 3 . 12 . 2 . . 13 14 . 4 9 7 138 6 . 14 18 12 16 8 67 Thermal 104 | . 4 . . 21 16 11 . . . . . 19 . 6 . . 5 . . . . . . . . . 8 2 3 1 . 2 6 Explosive 88 | . . 14 . 10 10 14 5 . . 6 . . . 2 . 10 . 8 2 . 3 . 3 . 1 . . . . . . . . Electromagnetic 218 | . 24 6 . . . . . . 8 2 16 . . 14 5 10 15 4 . . 7 . . . 25 65 . . . . . 13 4 Entropic 18 | . . . . . . . . . . . . . . . . . . . . . 3 1 1 . 6 7 . . . . . . . Robot Hit Streak 35 | . 7 7 . 16 3 20 6 5 10 6 8 7 . 10 4 5 17 7 4 2 3 . 5 3 15 35 . 5 11 11 13 9 11 Robot Miss Streak 8 | . 4 2 . 1 4 2 1 . 1 1 2 2 . 2 . 4 1 1 2 5 1 . 4 1 2 4 . 5 7 4 7 4 8 Penetration Max 2 | . . . . . . . . . . . . . . . . . . . . 1 . . . . 1 1 . 2 1 1 1 . 1 Secondary Targets 3 | . . . . . . . . . . . . . . . . . . . . . . . . . 3 . . . . . . . . Max Gunslinging Chain 1 | . . . . . . . . . . . . . . . . . . . . . . . . . 1 . . . . . . . . Shots Hit Robots 1003 | . 27 18 . 23 13 42 6 1 8 7 31 14 . 53 12 12 15 11 49 4 6 22 8 14 159 94 36 29 31 10 28 68 152 Core Hits 974 | . 12 21 . 27 23 35 9 1 3 5 19 8 . 29 6 18 35 15 42 3 14 14 10 12 127 63 22 33 31 34 50 63 190 Critical Hits 369 | . . . . . . . . . . . 2 2 . . . . . . 15 6 1 2 1 1 26 11 . 17 26 18 42 24 175 Critical Kills 92 | . . . . . . . . . . . . . . . . . . . 7 3 . . . . 10 3 . 6 12 9 15 2 25 Critical Parts Destroyed 163 | . . . . . . . . . . . 2 2 . . . . . . 6 . 1 1 1 1 14 5 . 6 11 6 21 14 72 Melee Attacks 726 | . . . . . 11 23 1 3 1 2 39 . . 43 15 5 . . 56 . 5 27 3 11 36 67 52 21 39 6 55 92 113 Impact . | . . . . . . . . . . . . . . . . . . . . . . . . . . . . . . . . . . Slashing 109 | . . . . . 11 16 . . . . . . . 43 15 5 . . . . . . . . . . . . 19 . . . . Piercing 617 | . . . . . . 7 1 3 1 2 39 . . . . . . . 56 . 5 27 3 11 36 67 52 21 20 6 55 92 113 Sneak Attacks 50 | . . . . . . . 1 . 1 . 4 . . 8 . . . . 6 . . 7 . 8 2 4 3 1 . . 4 1 . Combat Hostiles 4 | . . . . . . . . . . . . . . . . . . . . . . 4 . . . . . . . . . . . Follow-up Attacks 22 | . . . . . . . . . . . . . . . . . . . . . . 2 . . . . 4 . . . . 8 8 Damage Inflicted 58679 | . 475 1104 . 1246 1278 1939 521 35 216 590 1336 545 . 3184 508 2065 1946 1482 2787 273 993 1692 1179 1337 10723 5152 2665 1013 1016 932 1386 3465 5596 Guns 3455 | . 356 114 . 34 . . . . . . . . . . . . . . . . . . . 90 2421 440 . . . . . . . Cannons 13147 | . . . . 300 125 560 72 35 145 23 313 545 . 771 82 220 233 . 230 273 241 93 450 180 3032 2779 . 200 120 126 201 413 1385 Explosions 17569 | . 119 990 . 912 1021 926 381 . . 567 227 . . 613 51 1799 1713 1482 534 . 752 . 655 . 3989 . . . . 806 . 32 . Melee 24498 | . . . . . 132 453 68 . 71 . 796 . . 1800 375 46 . . 2023 . . 1599 74 1067 1281 1923 2665 813 896 . 1185 3020 4211 Ramming 10 | . . . . . . . . . . . . . . . . . . . . . . . . . . 10 . . . . . . . Kinetic 8115 | . 108 69 . 34 . 284 72 35 . . . 95 . 268 . . . . 230 273 . . 450 270 4494 . . 143 120 126 201 184 659 Thermal 2889 | . 154 27 . 300 125 276 . . . . 227 450 . 129 51 . 493 . . . . . . . . . . 57 . . . . 600 Explosive 10360 | . . 963 . 912 1021 895 381 . . 567 . . . 613 . 1799 . 1205 534 . 388 . 655 . 395 . . . . . . 32 . Electromagnetic 8125 | . 213 45 . . . 31 . . 145 23 313 . . 374 82 220 1453 277 . . 364 . . . 1543 2687 . . . . . 229 126 Impact . | . . . . . . . . . . . . . . . . . . . . . . . . . . . . . . . . . . Slashing 3331 | . . . . . 132 312 . . . . . . . 1800 375 46 . . . . . . . . . . . . 666 . . . . Piercing 21167 | . . . . . . 141 68 . 71 . 796 . . . . . . . 2023 . . 1599 74 1067 1281 1923 2665 813 230 . 1185 3020 4211 Entropic 3876 | . . . . . . . . . . . . . . . . . . . . . 241 93 . . 3010 532 . . . . . . . Phasic 806 | . . . . . . . . . . . . . . . . . . . . . . . . . . . . . . 806 . . . Highest Corruption 27 | . . . . . 5 2 2 11 11 12 21 . 9 9 9 9 11 2 12 26 27 27 27 27 5 7 18 1 4 . . . 4 Average Corruption 9 | . . . . . 5 1 2 10 11 11 1 . 9 9 9 9 4 2 7 20 26 27 27 16 2 4 14 1 1 . . . 3 Corruption Purged 32 | . . . . . . 1 . . . . . . . . . . . . . . . . . 27 . . . . 4 . . . . Effects 543 | . . . . . 5 6 6 24 13 13 1 . 1 43 23 15 1 5 28 14 22 59 27 116 9 27 53 . 6 . . . 26 Message Errors 111 | . . . . . 2 2 3 4 2 6 . . . 9 3 5 . 2 5 2 2 5 6 28 1 5 7 . 3 . . . 9 Matter Fused 100 | . . . . . 2 . . 10 3 . 1 . 1 6 2 3 . . 9 1 2 8 4 29 . 7 8 . 1 . . . 3 Heat Flow Errors 53 | . . . . . . 1 1 . 1 1 . . . 7 2 3 . . 2 3 1 7 2 15 . 1 5 . . . . . 1 Energy Discharges 49 | . . . . . 1 1 . 1 . 1 . . . 5 6 2 . 2 4 . 2 4 2 10 2 1 2 . 2 . . . 1 Parts Rejected 6 | . . . . . . . . . . . . . . 1 1 . . . . . . 1 . . 1 . . . . . . . 2 Data Loss (minor) 62 | . . . . . . 2 2 7 3 1 . . . 5 6 1 1 1 2 . 2 5 2 12 1 4 4 . . . . . 1 Data Loss (major) 11 | . . . . . . . . . 1 . . . . 1 1 . . . . 1 . 1 1 3 2 . . . . . . . . Misfires 8 | . . . . . . . . 1 . 1 . . . 1 1 . . . . . . . . 4 . . . . . . . . . Alerts 7 | . . . . . . . . . . . . . . . . . . . . . 1 1 1 2 . . 2 . . . . . . Misdirections 70 | . . . . . . . . 1 2 2 . . . . . . . . 2 4 8 22 4 7 . . 18 . . . . . . Targeting Errors 62 | . . . . . . . . . 1 1 . . . 6 1 1 . . 4 2 4 5 5 6 2 8 7 . . . . . 9 Weapon Failures 4 | . . . . . . . . . . . . . . 2 . . . . . 1 . . . . . 1 . . . . . . . Overload Shots . | . . . . . . . . . . . . . . . . . . . . . . . . . . . . . . . . . . Overflow Damage 2292 | . . 70 . 36 42 95 28 . . 26 5 2 . 282 . 83 6 34 2 . . 62 5 145 576 250 269 92 42 . 110 3 27 Projectiles 513 | . . . . 20 . 6 . . . . . 2 . 1 . . . . . . . . . . 405 79 . . . . . . . Explosions 595 | . . 70 . 16 42 80 28 . . 26 . . . 45 . 83 6 34 2 . . . 5 . 158 . . . . . . . . Melee 1184 | . . . . . . 9 . . . . 5 . . 236 . . . . . . . 62 . 145 13 171 269 92 42 . 110 3 27 Knockbacks 71 | . . . . . . 2 1 . . . . . . 2 . . . . 1 . . . . . 17 1 . 5 6 5 5 . 26 Impact 1 | . . . . . . . . . . . . . . . . . . . . . . . . . . 1 . . . . . . . Kinetic 66 | . . . . . . 2 1 . . . . . . 2 . . . . 1 . . . . . 13 . . 5 6 5 5 . 26 Secondary 4 | . . . . . . . . . . . . . . . . . . . . . . . . . 4 . . . . . . . . Self-Inflicted Damage 1647 | . . 125 . . 51 270 5 . . . . . . . . 9 32 . . . 73 . . . 82 . . . . 1000 . . . Shots 26 | . . 5 . . 2 7 1 . . . . . . . . 1 3 . . . 3 . . . 3 . . . . 1 . . . Rammed 1 | . . . . . . . . . . . . . . . . . . . . . . . . . . 1 . . . . . . . Targets Rammed 1 | . . . . . . . . . . . . . . . . . . . . . . . . . . 1 . . . . . . . Kicked . | . . . . . . . . . . . . . . . . . . . . . . . . . . . . . . . . . . Crushed . | . . . . . . . . . . . . . . . . . . . . . . . . . . . . . . . . . . Highest Temperature 525 | . 160 23 . 207 187 329 206 6 210 232 319 264 . 525 163 265 152 30 192 349 265 240 280 261 329 280 261 84 69 244 . 216 384 Average Temperature 97 | . 95 16 . 63 86 88 111 3 95 65 71 80 . 110 66 117 50 22 58 132 101 95 100 101 130 73 98 25 36 133 . 61 89 Received Heat Transfer 3885 | . 132 29 . 117 207 369 . . 18 45 966 30 . 234 27 99 57 30 71 . . 72 99 . 162 595 . 9 72 . 9 27 409 Effects 12 | . . . . 1 . 1 . . . . 2 1 . 3 . . . . . 1 . . . . 2 1 . . . . . . . Shutdowns 1 | . . . . . . . . . . . . . . 1 . . . . . . . . . . . . . . . . . . . Energy Bleed 4 | . . . . 1 . 1 . . . . . . . 1 . . . . . . . . . . 1 . . . . . . . . Interference 5 | . . . . . . . . . . . 2 1 . . . . . . . . . . . . 1 1 . . . . . . . Matter Decay 1 | . . . . . . . . . . . . . . 1 . . . . . . . . . . . . . . . . . . . Short Circuit 1 | . . . . . . . . . . . . . . . . . . . . 1 . . . . . . . . . . . . . Siege Activations 8 | . . . . . . . . . . . . . . . . . . . . . . . . . 4 2 2 . . . . . . Total Turns 444 | . . . . . . . . . . . . . . . . . . . . . . . . . 282 125 37 . . . . . . Longest Duration 250 | . . . . . . . . . . . . . . . . . . . . . . . . . 250 96 27 . . . . . . Robots Corrupted 31 | . . . . . . . . . 3 . . . . 2 . 2 1 1 . . 1 . . . 5 13 . . . . . 2 1 Combat Hostiles 28 | . . . . . . . . . 3 . . . . 2 . 2 1 1 . . 1 . . . 4 11 . . . . . 2 1 Parts Fried 64 | . . . . . . . . . 4 . 1 . . 2 1 1 2 1 . . 2 . . . 9 31 . 1 . . . 6 3 Impact Corruptions 2 | . . . . . . . . . . . . . . . . . . . . . . . . . 2 . . . . . . . . Robots Melted 1 | . . . . . . 1 . . . . . . . . . . . . . . . . . . . . . . . . . . . Combat Hostiles 1 | . . . . . . 1 . . . . . . . . . . . . . . . . . . . . . . . . . . . Parts Melted 9 | . . . . . 1 4 . . . . . 1 . . . . . . . . . 1 . . . . 2 . . . . . . Heat Transferred 2968 | . 125 50 . 444 185 446 . . . . 150 700 . 200 50 . 600 . . . . . . . . . . 18 . . . . . Parts Sabotaged 5 | . . . . . . . . . . . 3 . . . . . . . . . . . . . . 2 . . . . . . . Parts Stolen 3 | . . . . . . . . . . . . . . . 2 1 . . . . . . . . . . . . . . . . . Parts Stripped . | . . . . . . . . . . . . . . . . . . . . . . . . . . . . . . . . . . Power Chain Reactions 8 | . 1 . . . . . . . . . . . . . 1 . 3 . . . 3 . . . . . . . . . . . . Missiles Intercepted . | . . . . . . . . . . . . . . . . . . . . . . . . . . . . . . . . . . Alert | -11 -10 -10 -10 -9 -8 -7 -7 -7 -7 -6 -6 -5 -5 -5 -5 -5 -5 -4 -4 -4 -4 -4 -4 -4 -4 -3 -3 -2 -2 -2 -1 -1 -1 ------- Run | Scr Mat Min Exi Min Mat Fac Low Low Dat Pro Fac Fac Was Fac Upp Upp War Pro Fac Was Fac Ext Cet Arc Hub Res Tes Res Qua Sec Acc Com Ac0 Peak Influence 1718 | . 105 150 . 326 272 286 . . . . 591 269 114 860 . . . . 448 142 311 840 1231 585 1718 1249 656 443 294 1164 641 402 . Initial 1100 | . . 19 . . 78 6 . . . . 56 220 84 79 . . . . 88 119 99 78 470 364 . 1100 656 229 221 23 50 2 . Average 306 | . 51 69 . 103 127 133 . . . . 288 237 96 339 . . . . 229 130 185 494 893 214 648 944 514 359 86 242 180 101 . Maximum Alert Level 5 | . . . . 1 1 1 . . . . 2 1 . 3 . . . . 2 . 1 3 4 2 5 4 2 2 1 4 2 2 . Low Security (%) 56 | . 100 100 . 77 83 74 . . . . 45 . 100 33 . . . . 52 100 66 17 . 52 16 . . . 83 65 78 97 . Level 1 19 | . . . . 22 16 25 . . . . 14 100 . 40 . . . . 29 . 33 16 . 32 47 . 1 76 16 9 5 2 . Level 2 13 | . . . . . . . . . . . 39 . . 12 . . . . 17 . . 50 31 15 5 5 98 23 . 15 16 . . Level 3 6 | . . . . . . . . . . . . . . 13 . . . . . . . 14 48 . . 62 . . . . . . . Level 4 3 | . . . . . . . . . . . . . . . . . . . . . . . 19 . 15 31 . . . 9 . . . Level 5 . | . . . . . . . . . . . . . . . . . . . . . . . . . 10 . . . . . . . . High Security . | . . . . . . . . . . . . . . . . . . . . . . . . . 4 . . . . . . . . Max Security . | . . . . . . . . . . . . . . . . . . . . . . . . . . . . . . . . . . Squads Dispatched 61 | . 2 1 . 1 1 3 . . . . 8 . . 3 . . . . 4 . 1 3 . . 10 8 2 2 4 2 5 1 . Investigation 8 | . . 1 . . . . . . . . 1 . . 2 . . . . . . . 1 . . 2 1 . . . . . . . Extermination 17 | . . . . . . 1 . . . . 2 . . 1 . . . . 2 . . . . . 2 2 1 . 2 1 2 1 . Reinforcement 19 | . 2 . . . 1 1 . . . . 1 . . . . . . . 2 . 1 2 . . 3 1 . 2 2 . 1 . . Assault 13 | . . . . 1 . . . . . . 3 . . . . . . . . . . . . . 2 4 1 . . 1 1 . . Garrison 4 | . . . . . . 1 . . . . 1 . . . . . . . . . . . . . 1 . . . . . 1 . . Intercept . | . . . . . . . . . . . . . . . . . . . . . . . . . . . . . . . . . . Construction Impeded 4 | . . . . . . . . . . . . . . . . . . . 1 . . 2 . . 1 . . . . . . . . Haulers Reinforced 2 | . . . . . . . . . . . . . . . . . . . . . . . . . . 1 . 1 . . . . . Stealth | -11 -10 -10 -10 -9 -8 -7 -7 -7 -7 -6 -6 -5 -5 -5 -5 -5 -5 -4 -4 -4 -4 -4 -4 -4 -4 -3 -3 -2 -2 -2 -1 -1 -1 --------- Run | Scr Mat Min Exi Min Mat Fac Low Low Dat Pro Fac Fac Was Fac Upp Upp War Pro Fac Was Fac Ext Cet Arc Hub Res Tes Res Qua Sec Acc Com Ac0 Distress Signals 39 | . 1 . . 1 1 . . . . . . . . 1 . . . . . . . 1 2 . 3 2 1 3 1 . 2 20 . Communications Jammed 100 | . . . . . . . . . . . 5 . . . . . . . . . . . . . . 8 1 4 76 . 6 . . Distress Signals 100 | . . . . . . . . . . . 5 . . . . . . . . . . . . . . 8 1 4 76 . 6 . . Times Spotted 632 | . 16 17 . 20 13 20 3 1 3 5 45 5 5 23 3 13 36 9 27 6 5 26 19 13 56 65 20 14 25 5 27 24 63 Peak Tracking Total 15 | . 5 6 . 4 6 4 1 1 1 3 15 5 5 7 2 9 14 6 7 3 3 5 7 1 13 8 6 6 4 3 6 8 7 Tactical Retreats 50 | . 3 1 . . 1 3 . . . . . . . 2 . 3 4 2 2 . . 2 . . 3 8 1 4 1 . 4 4 2 Traps | -11 -10 -10 -10 -9 -8 -7 -7 -7 -7 -6 -6 -5 -5 -5 -5 -5 -5 -4 -4 -4 -4 -4 -4 -4 -4 -3 -3 -2 -2 -2 -1 -1 -1 ------- Run | Scr Mat Min Exi Min Mat Fac Low Low Dat Pro Fac Fac Was Fac Upp Upp War Pro Fac Was Fac Ext Cet Arc Hub Res Tes Res Qua Sec Acc Com Ac0 Traps Triggered 19 | . 1 . . . . 1 . . . . 2 2 . 2 . . . . 1 . 1 1 . . 1 2 . . . 1 1 3 . Indirectly 1 | . . . . . . . . . . . . . . . . . . . . . 1 . . . . . . . . . . . . Trap Hack Attempts . | . . . . . . . . . . . . . . . . . . . . . . . . . . . . . . . . . . Triggered . | . . . . . . . . . . . . . . . . . . . . . . . . . . . . . . . . . . Disarmed 10 | . . . . . . . . . . . . . . . . . . . . . . . . . . . . . . . . 10 . Reprogrammed . | . . . . . . . . . . . . . . . . . . . . . . . . . . . . . . . . . . Reused 3 | . . . . . . . . . 1 1 1 . . . . . . . . . . . . . . . . . . . . . . Traps Extracted . | . . . . . . . . . . . . . . . . . . . . . . . . . . . . . . . . . . Installed 6 | . . . . . . . . . 4 1 1 . . . . . . . . . . . . . . . . . . . . . . Triggered 13 | . . . . . . . . . . 1 1 . . . . . 9 . . . . . . . . . . . . . . 2 . Machines | -11 -10 -10 -10 -9 -8 -7 -7 -7 -7 -6 -6 -5 -5 -5 -5 -5 -5 -4 -4 -4 -4 -4 -4 -4 -4 -3 -3 -2 -2 -2 -1 -1 -1 ---------- Run | Scr Mat Min Exi Min Mat Fac Low Low Dat Pro Fac Fac Was Fac Upp Upp War Pro Fac Was Fac Ext Cet Arc Hub Res Tes Res Qua Sec Acc Com Ac0 Machines Disabled 88 | . . 1 . . 1 5 . . . 1 4 . . 1 . . 1 . 1 . 2 1 3 2 26 2 2 . 5 11 1 7 11 Max in Single Turn 20 | . . 1 . . 1 4 . . . 1 4 . . 1 . . 1 . 1 . 1 . 2 1 20 1 1 . 1 9 1 2 2 Garrison Access 12 | . . . . . . . . . . . 2 . . 1 . . . . 2 . . . . . 1 1 1 2 1 . 1 . . Phase Generator 1 | . . . . . . . . . . . . . . . . . . . . . . . . . . . . . . . . 1 . Network Hub 2 | . . . . . . . . . . . . . . . . . . . . . . . . . 2 . . . . . . . . Machines Sabotaged . | . . . . . . . . . . . . . . . . . . . . . . . . . . . . . . . . . . Garrisons Compromised . | . . . . . . . . . . . . . . . . . . . . . . . . . . . . . . . . . . Overloaded Fab Kills . | . . . . . . . . . . . . . . . . . . . . . . . . . . . . . . . . . . Fab Network Shutdowns 3 | . . . . . . . . . . . 1 . . 1 . . . . . . . . . . . . . . . . 1 . . Hacking | -11 -10 -10 -10 -9 -8 -7 -7 -7 -7 -6 -6 -5 -5 -5 -5 -5 -5 -4 -4 -4 -4 -4 -4 -4 -4 -3 -3 -2 -2 -2 -1 -1 -1 --------- Run | Scr Mat Min Exi Min Mat Fac Low Low Dat Pro Fac Fac Was Fac Upp Upp War Pro Fac Was Fac Ext Cet Arc Hub Res Tes Res Qua Sec Acc Com Ac0 Machines Accessed 138 | . 1 1 1 1 3 4 . 2 3 . 9 2 . 8 1 . 1 . 9 . 2 7 1 . 11 5 11 3 15 13 13 10 1 Terminals 86 | . 1 . . . 3 2 . . . . 3 . . 4 . . . . 4 . 2 7 1 . 10 2 5 2 12 11 8 9 . Fabricators 11 | . . . . . . . . . . . 2 . . 3 . . . . 1 . . . . . . . 2 1 . . 2 . . Repair Stations 11 | . . . . . . . . . . . 1 1 . . . . . . 1 . . . . . . 1 2 . 1 1 2 1 . Recycling Units 3 | . . . . . . 1 . . . . 1 1 . . . . . . . . . . . . . . . . . . . . . Scanalyzers 6 | . . . . . . . . . . . 1 . . . . . . . 1 . . . . . . 1 1 . 1 1 . . . Garrison Access 10 | . . . . . . 1 . . . . 1 . . 1 . . . . 2 . . . . . 1 1 1 . 1 . 1 . . Total Hacks 602 | . 3 1 1 1 6 9 . 2 19 . 29 6 . 48 1 . 1 . 47 . 13 26 3 . 36 21 64 13 52 59 81 58 2 Successful 352 | . . 1 1 1 1 2 . 2 19 . 17 3 . 20 1 . 1 . 27 . 5 8 1 . 14 16 31 5 41 43 46 44 2 Failed 246 | . 3 . . . 5 7 . . . . 12 3 . 28 . . . . 20 . 8 18 2 . 22 5 32 8 10 15 34 14 . Catastrophic 46 | . . . . . 2 1 . . . . 2 . . 9 . . . . 4 . 1 5 1 . 4 . 3 1 2 3 6 2 . Database Lockouts 4 | . . . . . . . . . . . . . . . . . . . . . . . . . . . 1 . 1 1 1 . . Manual 256 | . 3 . 1 . 6 4 . . . 1 11 . . 19 . . 1 . 16 . 4 11 4 . 19 2 22 7 24 23 47 31 . Terminals 392 | . 3 . . . 6 6 . . . . 13 . . 21 . . . . 18 . 13 26 3 . 34 8 33 10 40 47 60 51 . Fabricators 61 | . . . . . . . . . . . 6 . . 25 . . . . 9 . . . . . . . 8 3 . . 10 . . Repair Stations 75 | . . . . . . . . . . . 2 4 . . . . . . 9 . . . . . . 9 21 . 9 4 10 7 . Recycling Units 4 | . . . . . . 1 . . . . 1 2 . . . . . . . . . . . . . . . . . . . . . Scanalyzers 28 | . . . . . . . . . . . 6 . . . . . . . 8 . . . . . . 3 1 . 2 8 . . . Garrison Access 14 | . . . . . . 2 . . . . 1 . . 2 . . . . 3 . . . . . 2 1 1 . 1 . 1 . . Terminal Hacks 162 | . . 1 1 1 1 1 . 2 19 . 2 . . 4 1 . 1 . 2 . 4 6 . . 6 4 9 3 21 25 23 23 2 Record 8 | . . . . . . . . . 6 . . . . . . . . . . . . . . . . . . . . . . . 2 Part Schematic 15 | . . . . . . . . . 5 . . . . 1 . . . . . . . 1 . . . . 2 . 2 . 4 . . Robot Schematic 5 | . . . . . . . . . 5 . . . . . . . . . . . . . . . . . . . . . . . . Robot Analysis 6 | . . . . . . . . . . . . . . . . . . . . . . . . . . . . 2 1 3 . . . Prototype ID Bank 9 | . . . . . . . . . 3 . . . . . . . . . . . . . . . . . . . . 1 1 4 . Open Door 20 | . . 1 . 1 . . . 2 . . . . . . 1 . 1 . . . 1 3 . . . . . . 1 5 3 1 . Branch Access Points 7 | . . . . . 1 1 . . . . 1 . . 1 . . . . . . 1 . . . . 1 . 1 . . . . . Emergency Access Points 3 | . . . . . . . . . . . . . . . . . . . . . . . . . . . . . . 1 . 2 . Machine Index 4 | . . . . . . . . . . . . . . . . . . . . . . . . . 1 . . . 1 . 1 1 . Terminal Index 3 | . . . . . . . . . . . 1 . . . . . . . . . . . . . 1 . 1 . . . . . . Fabricator Index 2 | . . . . . . . . . . . . . . 1 . . . . 1 . . . . . . . . . . . . . . Alert Level 10 | . . . . . . . . . . . . . . . . . . . . . 1 . . . . . 1 . 3 2 1 2 . Unreport Threat 34 | . . . . . . . . . . . . . . . . . . . . . 1 1 . . 1 3 2 . 7 7 7 5 . Locate Traps 8 | . . . . . . . . . . . . . . . . . . . . . . 1 . . 1 . 1 . . 2 . 3 . Disarm Traps 3 | . . . . . . . . . . . . . . . . . . . . . . . . . . . . . . . . 3 . Recall Investigation 2 | . . . . . . . . . . . . . . 1 . . . . . . . . . . 1 . . . . . . . . Recall Extermination 4 | . . . . . . . . . . . . . . . . . . . . . . . . . . . . . 1 1 2 . . Recall Reinforcements 1 | . . . . . . . . . . . . . . . . . . . 1 . . . . . . . . . . . . . . Recall Assault 1 | . . . . . . . . . . . . . . . . . . . . . . . . . . . . . . 1 . . . Hauler Manifests 5 | . . . . . . . . . . . . . . . . . . . . . . . . . 1 . 1 . 1 1 1 . . Zone Layout 9 | . . . . . . . . . . . . . . . . . . . . . . . . . . . 1 . 4 1 3 . . EX-Prototype ID Bank 1 | . . . 1 . . . . . . . . . . . . . . . . . . . . . . . . . . . . . . Disengage Seal 2 | . . . . . . . . . . . . . . . . . . . . . . . . . . . . . . . . 2 . Fabricator Hacks 30 | . . . . . . . . . . . 4 . . 9 . . . . 5 . . . . . . . 4 2 . . 6 . . Load Schematic 15 | . . . . . . . . . . . 2 . . 4 . . . . 3 . . . . . . . 2 1 . . 3 . . Build 15 | . . . . . . . . . . . 2 . . 5 . . . . 2 . . . . . . . 2 1 . . 3 . . Repair Station Hacks 50 | . . . . . . . . . . . 1 2 . . . . . . 8 . . . . . . 8 8 . 7 2 8 6 . Scan Component 25 | . . . . . . . . . . . 1 1 . . . . . . 4 . . . . . . 4 4 . 3 1 4 3 . Repair 24 | . . . . . . . . . . . . 1 . . . . . . 4 . . . . . . 4 4 . 3 1 4 3 . Refit 1 | . . . . . . . . . . . . . . . . . . . . . . . . . . . . . 1 . . . . Recycling Unit Hacks 3 | . . . . . . 1 . . . . 1 1 . . . . . . . . . . . . . . . . . . . . . Process 2 | . . . . . . 1 . . . . 1 . . . . . . . . . . . . . . . . . . . . . . Retrieve Components 1 | . . . . . . . . . . . . 1 . . . . . . . . . . . . . . . . . . . . . Scanalyzer 25 | . . . . . . . . . . . 6 . . . . . . . 7 . . . . . . 2 . . 2 8 . . . Insert Component 19 | . . . . . . . . . . . 6 . . . . . . . 7 . . . . . . 1 . . 2 3 . . . Analyze 6 | . . . . . . . . . . . . . . . . . . . . . . . . . . 1 . . . 5 . . . Garrison Access Hacks 8 | . . . . . . . . . . . . . . 1 . . . . 2 . . . . . 1 1 1 . 1 . 1 . . Seal Access 8 | . . . . . . . . . . . . . . 1 . . . . 2 . . . . . 1 1 1 . 1 . 1 . . Unauthorized Hacks 74 | . . . . . . . . . . . 3 . . 6 . . . . 3 . 1 2 1 . 7 1 9 . 10 8 8 15 . Terminals 64 | . . . . . . . . . . . 2 . . 3 . . . . 1 . 1 2 1 . 7 1 7 . 10 8 6 15 . Track 28 | . . . . . . . . . . . . . . . . . . . . . . . 1 . 5 1 2 . 4 3 3 9 . Assimilate 5 | . . . . . . . . . . . 1 . . . . . . . 1 . . . . . . . 1 . 1 . 1 . . Botnet 22 | . . . . . . . . . . . 1 . . 3 . . . . . . 1 2 . . 2 . 4 . 3 3 2 1 . Disrupt 6 | . . . . . . . . . . . . . . . . . . . . . . . . . . . . . 2 . . 4 . Operators 3 | . . . . . . . . . . . . . . . . . . . . . . . . . . . . . . 2 . 1 . Fabricators 8 | . . . . . . . . . . . . . . 3 . . . . 2 . . . . . . . 1 . . . 2 . . Report 1 | . . . . . . . . . . . . . . 1 . . . . . . . . . . . . . . . . . . . Prioritize 3 | . . . . . . . . . . . . . . . . . . . 1 . . . . . . . 1 . . . 1 . . Siphon 3 | . . . . . . . . . . . . . . 1 . . . . 1 . . . . . . . . . . . 1 . . Haulers 1 | . . . . . . . . . . . . . . 1 . . . . . . . . . . . . . . . . . . . Repair Stations . | . . . . . . . . . . . . . . . . . . . . . . . . . . . . . . . . . . Recycling Units . | . . . . . . . . . . . . . . . . . . . . . . . . . . . . . . . . . . Scanalyzers 1 | . . . . . . . . . . . . . . . . . . . . . . . . . . . 1 . . . . . . Researchers 1 | . . . . . . . . . . . . . . . . . . . . . . . . . . . 1 . . . . . . Garrison Access 1 | . . . . . . . . . . . 1 . . . . . . . . . . . . . . . . . . . . . . Jam 1 | . . . . . . . . . . . 1 . . . . . . . . . . . . . . . . . . . . . . Data Cores Recovered . | . . . . . . . . . . . . . . . . . . . . . . . . . . . . . . . . . . Used . | . . . . . . . . . . . . . . . . . . . . . . . . . . . . . . . . . . Hacking Detections 92 | . 1 . . . 2 4 . . . . 7 . . 7 . . . . 5 . 2 7 1 . 10 4 7 3 6 8 11 7 . Full Trace Events 3 | . . . . . . . . . . . . . . 1 . . . . . . . 1 . . 1 . . . . . . . . Feedback Events . | . . . . . . . . . . . . . . . . . . . . . . . . . . . . . . . . . . Feedback Blocked . | . . . . . . . . . . . . . . . . . . . . . . . . . . . . . . . . . . Robot Schematics Acquired 5 | . . . . . . . . . 5 . . . . . . . . . . . . . . . . . . . . . . . . Robots Built . | . . . . . . . . . . . . . . . . . . . . . . . . . . . . . . . . . . Matter . | . . . . . . . . . . . . . . . . . . . . . . . . . . . . . . . . . . Time . | . . . . . . . . . . . . . . . . . . . . . . . . . . . . . . . . . . Total Robot Build Rating . | . . . . . . . . . . . . . . . . . . . . . . . . . . . . . . . . . . Part Schematics Acquired 18 | . . . . . . . . . 5 . . . . 1 . . . . . . . 1 . . . 1 2 . 2 2 4 . . Parts Built 18 | . . . . . . . . . . . 2 . . 5 . . . . 3 . . . . . . . 3 1 . . 4 . . Matter 3619 | . . . . . . . . . . . 636 . . 797 . . . . 494 . . . . . . . 519 285 . . 888 . . Time 810 | . . . . . . . . . . . 140 . . 236 . . . . 148 . . . . . . . 108 50 . . 128 . . Total Part Build Rating 129 | . . . . . . . . . . . 12 . . 37 . . . . 22 . . . . . . . 19 5 . . 34 . . Parts Repaired 24 | . . . . . . . . . . . . 1 . . . . . . 4 . . . . . . 4 4 . 3 1 4 3 . Time 839 | . . . . . . . . . . . . 28 . . . . . . 228 . . . . . . 158 100 . 114 26 107 78 . Parts Recycled . | . . . . . . . . . . . . . . . . . . . . . . . . . . . . . . . . . . Recycled Matter 11 | . . . . . . 11 . . . . . . . . . . . . . . . . . . . . . . . . . . . Retrieved Matter . | . . . . . . . . . . . . . . . . . . . . . . . . . . . . . . . . . . Retrieved Components 3 | . . . . . . . . . . . . 3 . . . . . . . . . . . . . . . . . . . . . Parts Scanalyzed 3 | . . . . . . . . . . . . . . . . . . . . . . . . . . 1 . . . 2 . . . Part Schematics Acquired 3 | . . . . . . . . . . . . . . . . . . . . . . . . . . 1 . . . 2 . . . Parts Damaged . | . . . . . . . . . . . . . . . . . . . . . . . . . . . . . . . . . . Bothacking | -11 -10 -10 -10 -9 -8 -7 -7 -7 -7 -6 -6 -5 -5 -5 -5 -5 -5 -4 -4 -4 -4 -4 -4 -4 -4 -3 -3 -2 -2 -2 -1 -1 -1 ------------ Run | Scr Mat Min Exi Min Mat Fac Low Low Dat Pro Fac Fac Was Fac Upp Upp War Pro Fac Was Fac Ext Cet Arc Hub Res Tes Res Qua Sec Acc Com Ac0 Used RIF Installer . | . . . . . . . . . . . . . . . . . . . . . . . . . . . . . . . . . . Robots Hacked 2 | . . . . . . . . . . . 1 . . . . . . . . . . . . . . . . 1 . . . . . Non-combat . | . . . . . . . . . . . . . . . . . . . . . . . . . . . . . . . . . . Combat 1 | . . . . . . . . . . . 1 . . . . . . . . . . . . . . . . . . . . . . Robot Hacks Applied 1 | . . . . . . . . . . . 1 . . . . . . . . . . . . . . . . . . . . . . parse_system 1 | . . . . . . . . . . . 1 . . . . . . . . . . . . . . . . . . . . . . Manual 1 | . . . . . . . . . . . . . . . . . . . . . . . . . . . . 1 . . . . . Relay Couplers Released 5 | . . . . . . . . . . . 2 . . . . . . . . . . . . . . . . 3 . . . . . Machine Destruction 5 | . . . . . . . . . . . 2 . . . . . . . . . . . . . . . . 3 . . . . . Robots Rewired 19 | . . . . . . . . . . . . 1 . . . . . . . . . 18 . . . . . . . . . . . Allies Hacked . | . . . . . . . . . . . . . . . . . . . . . . . . . . . . . . . . . . Hacks Repelled . | . . . . . . . . . . . . . . . . . . . . . . . . . . . . . . . . . . Allies | -11 -10 -10 -10 -9 -8 -7 -7 -7 -7 -6 -6 -5 -5 -5 -5 -5 -5 -4 -4 -4 -4 -4 -4 -4 -4 -3 -3 -2 -2 -2 -1 -1 -1 -------- Run | Scr Mat Min Exi Min Mat Fac Low Low Dat Pro Fac Fac Was Fac Upp Upp War Pro Fac Was Fac Ext Cet Arc Hub Res Tes Res Qua Sec Acc Com Ac0 Total Allies 100 | . . 5 . 1 . . . . . . 1 1 . . . . . . 1 . . 21 5 . . . 1 1 1 . 1 55 6 Largest Group 22 | . . 3 2 1 . . . . . . 1 1 . . . . . . 1 1 1 13 15 4 3 . 1 1 1 . 1 22 5 Highest-Rated Group 986 | . . 46 46 31 . . . . . . 26 29 . . . . . . 10 10 10 649 981 350 237 . 10 341 26 . 44 986 73 Highest-Rated Ally 341 | . . 31 31 31 . . . . . . 26 29 . . . . . . 10 10 10 156 150 113 94 . 10 341 26 . 44 243 15 Total Orders 23 | . . . . . 1 . . . . . 4 . . . . . . . 2 . 4 4 1 . 1 . . . 5 . 1 . . STAY 12 | . . . . . . . . . . . 1 . . . . . . . 1 . 2 2 1 . 1 . . . 3 . 1 . . FOLLOW 8 | . . . . . . . . . . . 1 . . . . . . . 1 . 2 2 . . . . . . 2 . . . . RETURN 3 | . . . . . 1 . . . . . 2 . . . . . . . . . . . . . . . . . . . . . . Ally Attacks 640 | . . 10 . 14 . . . . . . 16 5 . . . . . . . . . 141 131 5 11 . . 9 . . . 259 39 Total Damage 21685 | . . 108 . 188 . . . . . . . 75 . . . . . . . . . 3460 3337 173 389 . . 1973 . . . 11427 555 Kills 88 | . . 2 . 4 . . . . . . . . . . . . . . . . . 27 18 2 1 . . . . . . 34 . Allies Corrupted 2 | . . . . . . . . . . . . . . . . . . . . . . . . . . . . . . . . 2 . Allies Melted . | . . . . . . . . . . . . . . . . . . . . . . . . . . . . . . . . . . Intel | -11 -10 -10 -10 -9 -8 -7 -7 -7 -7 -6 -6 -5 -5 -5 -5 -5 -5 -4 -4 -4 -4 -4 -4 -4 -4 -3 -3 -2 -2 -2 -1 -1 -1 ------- Run | Scr Mat Min Exi Min Mat Fac Low Low Dat Pro Fac Fac Was Fac Upp Upp War Pro Fac Was Fac Ext Cet Arc Hub Res Tes Res Qua Sec Acc Com Ac0 Robot Analysis Total 6 | . . . . . . . . . . . . . . . . . . . . . . . . . . . . 2 1 3 . . . Derelict Logs Recovered 9 | . . 2 . 2 . . . . . 1 . . . . . 2 . 2 . . . . . . . . . . . . . . . Drone Launches 20 | . . . . . 1 . . . . . 19 . . . . . . . . . . . . . . . . . . . . . . Drone Recoveries 4 | . . . . . 1 . . . . . 3 . . . . . . . . . . . . . . . . . . . . . . Exploration | -11 -10 -10 -10 -9 -8 -7 -7 -7 -7 -6 -6 -5 -5 -5 -5 -5 -5 -4 -4 -4 -4 -4 -4 -4 -4 -3 -3 -2 -2 -2 -1 -1 -1 ------------- Run | Scr Mat Min Exi Min Mat Fac Low Low Dat Pro Fac Fac Was Fac Upp Upp War Pro Fac Was Fac Ext Cet Arc Hub Res Tes Res Qua Sec Acc Com Ac0 Turns Passed 29796 | . 472 890 430 1076 811 1105 576 716 294 306 1561 396 50 1047 554 448 767 261 1260 121 239 781 416 2532 1374 1639 817 580 1804 705 1320 3394 1054 Spaces Moved 22438 | 1 268 519 258 481 339 651 344 433 156 163 760 381 77 1076 313 356 746 414 958 136 292 457 169 233 422 753 1029 903 1548 824 1916 3801 1261 Core 13 | . . . . . . . . . . . . . . . . . . . . . . . . . . . . . 6 . . . 7 Treads 2504 | . . 430 258 481 339 6 . . . . . . . . . . . . . . . . 142 233 422 187 6 . . . . . . Legs 1286 | 1 268 89 . . . . . . 26 163 739 . . . . . . . . . . . . . . . . . . . . . . Wheels 1562 | . . . . . . 645 344 433 130 . 10 . . . . . . . . . . . . . . . . . . . . . . Hover 5573 | . . . . . . . . . . . . 368 77 1076 313 356 746 414 958 136 292 457 27 . . 353 . . . . . . . Flight 11500 | . . . . . . . . . . . 11 13 . . . . . . . . . . . . . 213 1023 903 1542 824 1916 3801 1254 Fastest Speed 22 | 120 120 120 160 160 180 120 150 140 150 150 22 22 62 58 76 72 53 52 45 53 53 55 121 180 160 37 37 37 37 37 29 22 22 Average Speed 75 | 120 144 157 163 184 205 137 151 159 153 150 158 72 62 64 80 75 67 52 58 56 54 111 173 180 174 86 39 38 40 37 36 37 30 Slowest Speed 300 | 120 150 160 180 200 220 220 160 160 160 150 300 80 62 76 150 146 76 53 121 60 113 125 290 180 180 260 170 117 250 37 117 209 150 Overloaded Moves 423 | . . . . . . . . . . . . . . . . . . . . . . . . . . . . . . . . 137 286 Propulsion Burnouts . | . . . . . . . . . . . . . . . . . . . . . . . . . . . . . . . . . . Robots Hopped 64 | . . . . . . . . . . . 1 . . . . . . . . . . . . . . 11 12 18 1 2 16 1 2 Cave-ins Triggered 3 | . . . . . 1 . . 2 . . . . . . . . . . . . . . . . . . . . . . . . . Teleports 2 | . . . . . . . . . . . . . . . . . . . . . . . . . . . . . . . . 1 1 Exploration Rate (%) 52 | 2 52 82 61 86 33 20 55 69 77 37 25 11 87 25 57 55 82 72 22 98 8 67 67 76 45 17 70 30 83 55 38 82 55 Regions Visited 33 Branch Regions 20 Pre-discovered Areas 3 | . . 1 . . . . . . 1 . . . . . . 1 . . . . . . . . . . . . . . . . . Known Exits Taken 23 | . . . . 1 . 1 1 1 1 1 1 . . 1 1 1 1 1 . . 1 1 1 1 1 1 1 1 1 1 1 . . Unknown Exits Taken 6 | 1 1 1 1 . 1 . . . . . . . . . . . . . . . . . . . . . . . . . . 1 . Scrap Searched 10 | . . 2 . 1 . . 2 2 . . . . . . . 2 . 1 . . . . . . . . . . . . . . . Spaces Dug 225 | . . . . 2 20 10 12 4 . 15 10 1 . 6 2 3 . . 4 . 5 3 . . 6 23 18 3 10 19 26 10 13 Terrain Destroyed 2317 | . 4 105 . 90 60 89 36 5 . 78 27 5 . 32 2 157 5 77 38 4 30 9 48 . 509 30 18 3 12 691 26 87 40 Melee 130 | . . . . . 5 . . 2 . 1 10 . . 6 2 1 . . 4 . 5 . . . 6 19 10 3 10 4 26 10 6 Projectile 181 | . . . . 6 10 . 1 3 . . . 5 . 6 . 2 1 . 2 4 . 9 3 . 38 11 8 . 2 15 . 21 34 AOE 2006 | . 4 105 . 84 45 89 35 . . 77 17 . . 20 . 154 4 77 32 . 25 . 45 . 465 . . . . 672 . 56 . Terrain Rammed . | . . . . . . . . . . . . . . . . . . . . . . . . . . . . . . . . . . Walls Destroyed . | . . . . . . . . . . . . . . . . . . . . . . . . . . . . . . . . . . Machines Disabled . | . . . . . . . . . . . . . . . . . . . . . . . . . . . . . . . . . . Actions | -11 -10 -10 -10 -9 -8 -7 -7 -7 -7 -6 -6 -5 -5 -5 -5 -5 -5 -4 -4 -4 -4 -4 -4 -4 -4 -3 -3 -2 -2 -2 -1 -1 -1 --------- Run | Scr Mat Min Exi Min Mat Fac Low Low Dat Pro Fac Fac Was Fac Upp Upp War Pro Fac Was Fac Ext Cet Arc Hub Res Tes Res Qua Sec Acc Com Ac0 Total 33571 | . 305 567 270 633 410 799 387 449 204 205 1047 476 78 1313 585 503 987 442 1540 165 345 685 272 2328 840 1561 1356 1081 2632 1196 2400 5697 1813 Wait 7637 | . 7 12 . 113 12 34 . . 7 6 137 51 . 97 239 93 171 5 395 8 25 49 67 2061 96 535 179 96 870 273 340 1564 95 Move 22288 | . 267 518 257 480 338 650 343 431 155 162 757 381 76 1075 312 355 745 413 958 135 291 456 168 232 421 733 1005 874 1545 819 1883 3797 1256 Hop 52 | . . . . . . . . . . . 1 . . . . . . . . . . . . . . 8 11 10 1 2 16 1 2 Pick Up 404 | . 5 6 5 4 11 22 14 1 7 2 16 4 1 19 4 7 14 2 31 2 1 3 2 4 18 21 32 16 44 9 17 23 37 Fast Attach 224 | . 1 . . 2 4 4 1 . 3 1 5 11 1 22 3 . 8 . 16 . . 3 7 5 15 12 13 3 11 5 13 27 28 Attach 326 | . 1 2 . . 5 16 2 2 1 4 24 4 . 4 1 1 4 . 11 . 3 . 1 3 15 47 12 13 15 22 15 24 74 Detach 252 | . . 1 . . 2 4 2 . 1 4 10 2 . 10 1 . 6 . 10 . . 4 2 1 21 33 13 8 11 17 8 29 52 Swap 303 | . . 2 2 3 . 1 5 5 7 4 12 1 . 5 3 12 4 8 29 2 7 5 4 . 32 16 10 7 23 5 17 33 39 Drop 413 | . . 6 6 . 1 4 8 1 10 5 27 2 . 9 3 8 15 2 20 3 . 6 5 8 30 18 26 16 52 9 20 43 50 Fire 771 | . 24 20 . 31 26 41 11 5 8 14 18 19 . 29 4 22 20 12 15 15 13 5 13 3 156 70 8 17 21 13 16 25 77 Melee 692 | . . . . . 11 23 1 3 1 2 39 . . 43 15 5 . . 55 . 5 25 3 11 36 67 47 21 39 6 55 76 103 Ram . | . . . . . . . . . . . . . . . . . . . . . . . . . . . . . . . . . . Kick . | . . . . . . . . . . . . . . . . . . . . . . . . . . . . . . . . . . Crush 1 | . . . . . . . . . . . . . . . . . . . . . . . . . . 1 . . . . . . . Escape Stasis 85 | . . . . . . . . 1 . . . . . . . . . . . . . 13 . . . . . . . 16 . 55 . Rewire 117 | . . . . . . . . . . . . 1 . . . . . . . . . 116 . . . . . . . . . . . Trap 6 | . . . . . . . . . 4 1 1 . . . . . . . . . . . . . . . . . . . . . . Miscellaneous . | . . . . . . . . . . . . . . . . . . . . . . . . . . . . . . . . . . Route ------- -11/Scrapyard -10/Materials (discovered 3 exits: [*Mat x2] / *Min) -10/Mines -10/Exiles -9/Mines -8/Materials -7/Factory (discovered 6 exits: *Fac x2 / *Sto x2 / *Low x2) -7/Lower Caves -7/Lower Caves (discovered 2 exits: *Fac / *Dat) -7/Data Miner -6/Proximity Caves -6/Factory (discovered 3 exits: *Fac / Low x2) -5/Factory -5/Waste -5/Factory (discovered 4 exits: *Fac x2 / *Upp x2) -5/Upper Caves -5/Upper Caves (discovered 2 exits: Fac / *War) -5/Warlord -4/Proximity Caves -4/Factory (discovered 5 exits: *Res x3 / Upp / *Ext) -4/Waste -4/Factory (discovered 4 exits: Upp x2 / *Ext x2) -4/Extension (discovered 2 exits: *Res / *Cet) -4/Cetus (discovered 2 exits: *Res / *Arc) -4/Archives (discovered 3 exits: *Res / *Hub x2) -4/Hub_04(d) (discovered 3 exits: *Res x3) -3/Research (discovered 3 exits: Arm / *Tes x2) -3/Testing -2/Research (discovered 3 exits: Acc / *Qua x2) -2/Quarantine (discovered 2 exits: *Acc / *Sec) -2/Section 7 -1/Access -1/Command (discovered 3 exits: [*Sur x2] / *Ac0) -1/Access_0 To Fleet Rendezvous History --------- Turn | Location | Event 1 | -11/Scrapyard | Discovered new exit (range 0) 1 | -11/Scrapyard | Entered Materials 153 | -10/Materials | Discovered new exit (range 15) 306 | -10/Materials | Build established: Mutant 393 | -10/Materials | Discovered new exit (range 5) 450 | -10/Materials | Discovered new exit (range 15) 473 | -10/Materials | Entered Mines 484 | -10/Mines | Assisted by bots powering up and referring to "LRC-V3" 572 | -10/Mines | Assembled infested the area 662 | -10/Mines | Destroyed 10 combat bots 727 | -10/Mines | Learned location of Zion (-6) 744 | -10/Mines | Met a Derelict shopkeep closing up shop 789 | -10/Mines | Received a Rocket Launcher from a helpful Derelict 918 | -10/Mines | Core integrity fell below 50% 1353 | -10/Mines | Deemed a non-threat by the Exiles lab entrance 1353 | -10/Mines | Discovered new exit (range 5) 1363 | -10/Mines | Entered Exiles 1363 | -10/Exiles | Accompanied by 2 allies 1393 | -10/Exiles | Led the pair of lost Derelicts to a safe place 1403 | -10/Exiles | Met 8R-AWN 1429 | -10/Exiles | Met EX-HEX 1472 | -10/Exiles | Met EX-BIN 1496 | -10/Exiles | Aligned with FarCom system 1498 | -10/Exiles | Given EX-Vault access code 1543 | -10/Exiles | Opened EX-Vault 1552 | -10/Exiles | Found Chronowheel 1560 | -10/Exiles | Found AWS/Autocannon 1566 | -10/Exiles | Found Modified TNC 1604 | -10/Exiles | Warned to stay clear of 0b10 Research branches 1654 | -10/Exiles | Met EX-DEC 1771 | -10/Exiles | Discovered new exit (range 14) 1793 | -10/Exiles | Stole three prototypes: Modified TNC, Chronowheel, AWS/Autocannon 1793 | -10/Exiles | Entered Mines 1810 | -9/Mines | Met a Derelict bent on vengeance 1840 | -9/Mines | Found a damaged Exp. Sensor Array with a note attached 1845 | -9/Mines | Found Prototype Device 1934 | -9/Mines | Excavation squad dispatched 1934 | -9/Mines | A large section of the Mines collapsed 2120 | -9/Mines | A weapon hastily lodged in a ceiling crevice suddenly fell to the ground 2184 | -9/Mines | Excavation squad dispatched 2212 | -9/Mines | Found the Drone Emporium 2225 | -9/Mines | Learned 2 Materials zone layouts 2229 | -9/Mines | Found Prototype Device 2259 | -9/Mines | Met a Derelict testing a Signal Generator 2434 | -9/Mines | Excavation squad dispatched 2684 | -9/Mines | Excavation squad dispatched 2775 | -9/Mines | Identified exit to Materials 2869 | -9/Mines | Entered Materials 2869 | -8/Materials | Evolved 4 slots: Utility x4 2869 | -8/Materials | Identified Bomb Drone Bay 3164 | -8/Materials | Lost 4 parts (1p1n1u1w) 3224 | -8/Materials | Build established: Hauler-Mutant 3280 | -8/Materials | Discovered new exit (range 11) 3427 | -8/Materials | Crushed by falling debris 3680 | -8/Materials | Entered Factory 3680 | -7/Factory | Evolved 2 slots: Utility x2 3681 | -7/Factory | Identified exit to Storage 3682 | -7/Factory | FarCom data flow suspended 3859 | -7/Factory | Garrison activated, responded to threat 4117 | -7/Factory | Discovered new exit (range 4) 4162 | -7/Factory | Identified exit to Factory 4177 | -7/Factory | Lost 6 parts (1p2n1u2w) 4340 | -7/Factory | Lost 4 parts (1p1n1u1w) 4421 | -7/Factory | Discovered exit to Factory (range 8) 4571 | -7/Factory | Identified exit to Lower Caves 4785 | -7/Factory | Entered Lower Caves 5209 | -7/Lower Caves | Identified Exp. Sensor Array 5330 | -7/Lower Caves | Discovered new exit (range 15) 5359 | -7/Lower Caves | Identified exit to Lower Caves 5361 | -7/Lower Caves | Entered another Lower Caves area 5439 | -7/Lower Caves | Crushed by falling debris 5439 | -7/Lower Caves | Core integrity fell below 50% 5439 | -7/Lower Caves | Crushed by falling debris 5440 | -7/Lower Caves | System corruption reached 10% 5515 | -7/Lower Caves | Discovered exit to Factory (range 14) 5559 | -7/Lower Caves | Found Prototype Device 5924 | -7/Lower Caves | Encountered a Warlord checkpoint 6051 | -7/Lower Caves | Discovered new exit (range 15) 6075 | -7/Lower Caves | Identified exit to Data Miner 6077 | -7/Lower Caves | Entered Data Miner 6078 | -7/Data Miner | Discovered new exit (range 6) 6106 | -7/Data Miner | Met Data Miner 6136 | -7/Data Miner | Learned location of Section 7 (-2) 6136 | -7/Data Miner | Acquired the access code to Warlord's prototype stash 6159 | -7/Data Miner | Received God Mode back door access code from Data Miner 6232 | -7/Data Miner | Destroyed Data Miner 6237 | -7/Data Miner | Data Conduit disabled 6258 | -7/Data Miner | Found Prototype Hackware 6261 | -7/Data Miner | Found Prototype Hackware 6263 | -7/Data Miner | Found Prototype Hackware 6266 | -7/Data Miner | Found Prototype Hackware 6351 | -7/Data Miner | Identified exit to Proximity Caves 6371 | -7/Data Miner | Entered Proximity Caves 6451 | -6/Proximity Caves | Acquired the password to a Derelict Tinkerer's latest research 6459 | -6/Proximity Caves | Found Prototype Special Weapon 6497 | -6/Proximity Caves | Identified Molecular Deconstructor 6557 | -6/Proximity Caves | Learned Factory stockpile data 6600 | -6/Proximity Caves | Caught by Unaware searching for contraband prototypes 6604 | -6/Proximity Caves | Caught by Unaware searching for contraband prototypes 6604 | -6/Proximity Caves | Core integrity fell below 20% 6653 | -6/Proximity Caves | Discovered exit to Factory (range 11) 6677 | -6/Proximity Caves | Entered Factory 6677 | -6/Factory | Evolved 2 slots: Utility x2 6781 | -6/Factory | Identified Heart of Steel 6781 | -6/Factory | Identified System Mapper 6781 | -6/Factory | Identified Deep Network Scanner 6781 | -6/Factory | Identified Ghost Barrier 6781 | -6/Factory | Identified Quantum Router 6919 | -6/Factory | Fabricated Exp. Cesium-ion Thruster (x1) 7213 | -6/Factory | Discovered new exit (range 22) 7310 | -6/Factory | Build established: Hauler-Assassin 7336 | -6/Factory | Fabricated Exp. Cesium-ion Thruster (x1) 7383 | -6/Factory | Local fabrication network quarantined 7517 | -6/Factory | Identified exit to Factory 7664 | -6/Factory | Spotted B-75 Beast 7687 | -6/Factory | Identified exit to Lower Caves 7914 | -6/Factory | Garrison activated, responded to threat 7946 | -6/Factory | Build established: Hauler-Mutant 8077 | -6/Factory | First assault squad dispatched 8185 | -6/Factory | Core integrity fell below 50% 8224 | -6/Factory | System corruption reached 10% 8236 | -6/Factory | Core integrity fell below 20% 8238 | -6/Factory | Entered another Factory area 8238 | -5/Factory | Evolved 2 slots: Propulsion x2 8267 | -5/Factory | Lost 14 parts (2p3n8u1w) 8536 | -5/Factory | Build established: Mutant 8564 | -5/Factory | Repaired Cmb. Gravmag System 8634 | -5/Factory | Sucked down chute 8634 | -5/Factory | Entered Waste 8639 | -5/Waste | Spotted C-40 Crusher 8645 | -5/Waste | Spotted C-40 Crusher 8649 | -5/Waste | EMP discharged 8652 | -5/Waste | Spotted C-40 Crusher 8655 | -5/Waste | Spotted C-40 Crusher 8657 | -5/Waste | Spotted C-40 Crusher 8666 | -5/Waste | Found Fusion Bomb Launcher 8670 | -5/Waste | Spotted C-40 Crusher 8675 | -5/Waste | Discovered new exit (range 16) 8684 | -5/Waste | Entered Factory 8800 | -5/Factory | Discovered new exit (range 13) 8921 | -5/Factory | Build established: Hacker-Mutant 9134 | -5/Factory | Identified exit to Upper Caves 9197 | -5/Factory | Fabricated Cmb. Antigrav System? 9268 | -5/Factory | Fabricated Cmb. Antigrav System? 9324 | -5/Factory | Discovered new exit (range 14) 9445 | -5/Factory | Fabricated Exp. Sensor Array? 9590 | -5/Factory | Local fabrication network quarantined 9731 | -5/Factory | Entered Upper Caves 9955 | -5/Upper Caves | Attracted the attention of an 0b10 checkpoint 9985 | -5/Upper Caves | Spotted NJ-3V1(f) 9986 | -5/Upper Caves | Encountered a Master Thief 9988 | -5/Upper Caves | Spotted 0I-PY3(f) 9989 | -5/Upper Caves | Encountered a Master Thief 9991 | -5/Upper Caves | Cmb. Antigrav System stolen by Master Thief 10009 | -5/Upper Caves | Cmb. Antigrav System stolen by Master Thief 10043 | -5/Upper Caves | Destroyed 0I-PY3(f) 10235 | -5/Upper Caves | Discovered new exit (range 11) 10242 | -5/Upper Caves | Identified exit to Upper Caves 10285 | -5/Upper Caves | Entered another Upper Caves area 10400 | -5/Upper Caves | Destroyed 9 combat bots 10467 | -5/Upper Caves | Discovered new exit (range 20) 10523 | -5/Upper Caves | Attracted the attention of an 0b10 checkpoint 10540 | -5/Upper Caves | Learned 8 Factory zone layouts 10583 | -5/Upper Caves | Encountered a Warlord checkpoint 10697 | -5/Upper Caves | Spotted 83-EWN(f) 10698 | -5/Upper Caves | Encountered a Master Thief 10705 | -5/Upper Caves | Cmb. Antigrav System stolen by Master Thief 10719 | -5/Upper Caves | Build established: Hacker-Scout 10729 | -5/Upper Caves | Discovered new exit (range 6) 10732 | -5/Upper Caves | Identified exit to Warlord 10733 | -5/Upper Caves | Entered Warlord 10746 | -5/Warlord | System corruption reached 10% 10760 | -5/Warlord | System corruption cleaned by Quarantine Array 10790 | -5/Warlord | Received a Watcher feed algorithm from an ecstatic Tinkerer 11018 | -5/Warlord | Visited the Vortex Lab 11028 | -5/Warlord | Found Prototype Launcher 11030 | -5/Warlord | Found Prototype Energy Cannon 11030 | -5/Warlord | Identified Vortex Cannon 11033 | -5/Warlord | Found Prototype Energy Cannon 11033 | -5/Warlord | Identified Vortex Driver 11037 | -5/Warlord | Warlord's base attacked by MAIN.C 11037 | -5/Warlord | Found Vortex Driver 11039 | -5/Warlord | Found Vortex Cannon 11095 | -5/Warlord | Met Warlord 11103 | -5/Warlord | Opened Warlord's prototype stash 11118 | -5/Warlord | Found Prototype Device 11118 | -5/Warlord | Identified Exp. Focal Shield 11122 | -5/Warlord | Found Prototype Processor 11122 | -5/Warlord | Identified Exp. Targeting Computer 11322 | -5/Warlord | Build established: Scavenger-Mutant 11360 | -5/Warlord | Spotted Striker 11378 | -5/Warlord | Destroyed Striker 11387 | -5/Warlord | Warlord forces counterattacked 11437 | -5/Warlord | Spotted Executioner 11441 | -5/Warlord | Spotted Striker 11449 | -5/Warlord | Discovered new exit (range 13) 11450 | -5/Warlord | P-70 Sage assimilated allied NW-4ZE(g) 11458 | -5/Warlord | P-80 Master assimilated allied KY-XVI(g) 11469 | -5/Warlord | Found Prototype Processor 11479 | -5/Warlord | Found Prototype Device 11483 | -5/Warlord | Found Prototype Ballistic Cannon 11486 | -5/Warlord | Found Prototype Ballistic Cannon 11489 | -5/Warlord | Found Prototype Ballistic Cannon 11499 | -5/Warlord | Identified exit to Proximity Caves 11500 | -5/Warlord | Entered Proximity Caves 11534 | -4/Proximity Caves | Attracted the attention of an 0b10 checkpoint 11749 | -4/Proximity Caves | Learned 8 Research zone layouts 11752 | -4/Proximity Caves | Discovered new exit (range 8) 11755 | -4/Proximity Caves | Received a Behemoth hack from an annoying Tinkerer 11755 | -4/Proximity Caves | Identified exit to Factory 11761 | -4/Proximity Caves | Entered Factory 11761 | -4/Factory | Evolved 2 slots: Power x1, Utility x1 11762 | -4/Factory | Identified exit to Research 11762 | -4/Factory | Identified exit to Upper Caves 11810 | -4/Factory | Identified Hvy. Autocannon (x3) 11810 | -4/Factory | Identified Adv. Kinecellerator 11810 | -4/Factory | Identified Vortex Catalyst Activator 11810 | -4/Factory | Identified Exp. Core Analyzer 11980 | -4/Factory | Repaired Cld. Antigrav System 12011 | -4/Factory | Repaired Med. Storage Unit 12046 | -4/Factory | Repaired Lrg. Storage Unit 12116 | -4/Factory | Repaired Cmb. Antigrav System 12335 | -4/Factory | Discovered new exit (range 16) 12356 | -4/Factory | Found Prototype Device 12368 | -4/Factory | Identified Exp. ECM Suite 12632 | -4/Factory | System corruption reached 10% 12817 | -4/Factory | Fabricated Cmb. Antigrav System (x2) 12829 | -4/Factory | Found Imp. Powered Armor 12856 | -4/Factory | Discovered exit to Research (range 9) 12890 | -4/Factory | Found Prototype Hackware 12906 | -4/Factory | Fabricated Combat Drone Bay? 13021 | -4/Factory | Manually triggered Chute Trap 13021 | -4/Factory | Sucked down chute 13021 | -4/Factory | Entered Waste 13036 | -4/Waste | EMP discharged 13037 | -4/Waste | Spotted C-40 Crusher 13043 | -4/Waste | Spotted C-40 Crusher 13043 | -4/Waste | Spotted C-40 Crusher 13050 | -4/Waste | 1 allies followed down the chute 13053 | -4/Waste | Destroyed C-40 Crusher 13060 | -4/Waste | Spotted C-40 Crusher 13066 | -4/Waste | Destroyed C-40 Crusher 13080 | -4/Waste | Destroyed C-40 Crusher 13088 | -4/Waste | Spotted C-40 Crusher 13094 | -4/Waste | Found Damper Plating 13097 | -4/Waste | Spotted C-40 Crusher 13133 | -4/Waste | Discovered new exit (range 10) 13136 | -4/Waste | EMP discharged 13137 | -4/Waste | Identified exit to Factory 13142 | -4/Waste | Entered Factory 13142 | -4/Factory | Accompanied by 1 ally 13149 | -4/Factory | Identified exit to Extension 13381 | -4/Factory | Entered Extension 13381 | -4/Extension | Accompanied by 1 ally 13640 | -4/Extension | Rescued a captive Derelict 13685 | -4/Extension | Rescued A7 13996 | -4/Extension | Rescued a captive Derelict 14123 | -4/Extension | Discovered exit to Research (range 10) 14125 | -4/Extension | Discovered new exit (range 6) 14133 | -4/Extension | Identified exit to Cetus 14162 | -4/Extension | Entered Cetus 14162 | -4/Cetus | Accompanied by 13 allies (A7) 14167 | -4/Cetus | Acquired a Cetus Manufacturing Module code from A7 14177 | -4/Cetus | Spotted Cetus Guard 14177 | -4/Cetus | Spotted Cetus Guard 14181 | -4/Cetus | Spotted Cetus Guard 14189 | -4/Cetus | Spotted Cetus Guard 14192 | -4/Cetus | Allies destroyed Cetus Guard 14194 | -4/Cetus | Allies destroyed Cetus Guard 14195 | -4/Cetus | Allies destroyed Cetus Guard 14199 | -4/Cetus | Allies destroyed Cetus Guard 14308 | -4/Cetus | Started Cetus Manufacturing Module 14327 | -4/Cetus | Escorted A7 to Cetus Mainframe 14333 | -4/Cetus | Manufactured an Enhanced Grunt 14351 | -4/Cetus | Discovered new exit (range 15) 14358 | -4/Cetus | Manufactured an Enhanced Grunt 14383 | -4/Cetus | Manufactured an Enhanced Grunt 14408 | -4/Cetus | Manufactured an Enhanced Grunt 14433 | -4/Cetus | Manufactured an Enhanced Grunt 14458 | -4/Cetus | Spotted Cetus Guard 14461 | -4/Cetus | Destroyed Cetus Guard 14463 | -4/Cetus | Spotted Cetus Guard 14463 | -4/Cetus | Spotted Cetus Guard 14469 | -4/Cetus | Spotted Cetus Guard 14476 | -4/Cetus | Allies destroyed Cetus Guard 14480 | -4/Cetus | Allies destroyed Cetus Guard 14484 | -4/Cetus | Allies destroyed Cetus Guard 14494 | -4/Cetus | Discovered exit to Research (range 15) 14503 | -4/Cetus | Met Revision 17 14575 | -4/Cetus | Identified exit to Archives 14578 | -4/Cetus | Entered Archives 14578 | -4/Archives | Accompanied by 4 allies (A7) 14583 | -4/Archives | Received a hacking code to weaken MAIN.C 14624 | -4/Archives | Discovered exit to Research (range 15) 14719 | -4/Archives | Discovered new exit (range 15) 14789 | -4/Archives | Discovered new exit (range 16) 17103 | -4/Archives | Identified exit to Hub_04(d) 17110 | -4/Archives | Entered Hub_04(d) 17110 | -4/Hub_04(d) | Accompanied by 3 allies 17168 | -4/Hub_04(d) | Discovered exit to Research (range 14) 17266 | -4/Hub_04(d) | Garrison activated, responded to threat 17617 | -4/Hub_04(d) | Discovered exit to Research (range 13) 17908 | -4/Hub_04(d) | Core integrity fell below 50% 17930 | -4/Hub_04(d) | Discovered exit to Research (range 11) 18057 | -4/Hub_04(d) | Network Hub disabled 18057 | -4/Hub_04(d) | Network Hub disabled 18096 | -4/Hub_04(d) | Spotted Lightning 18106 | -4/Hub_04(d) | Spotted Lightning 18107 | -4/Hub_04(d) | Spotted Lightning 18110 | -4/Hub_04(d) | First assault squad dispatched 18161 | -4/Hub_04(d) | Spotted Lightning 18165 | -4/Hub_04(d) | Spotted Lightning 18171 | -4/Hub_04(d) | Spotted Lightning 18198 | -4/Hub_04(d) | Destroyed Lightning 18219 | -4/Hub_04(d) | Destroyed 11 combat bots 18227 | -4/Hub_04(d) | Destroyed Lightning 18237 | -4/Hub_04(d) | Destroyed Lightning 18294 | -4/Hub_04(d) | Destroyed Lightning 18302 | -4/Hub_04(d) | Found Prototype Device 18345 | -4/Hub_04(d) | Destroyed Lightning 18355 | -4/Hub_04(d) | Destroyed Lightning 18364 | -4/Hub_04(d) | Found Prototype Energy Cannon 18365 | -4/Hub_04(d) | Identified EM Dispersion Field 18376 | -4/Hub_04(d) | Found Exp. Targeting Computer 18381 | -4/Hub_04(d) | Found Prototype Energy Cannon 18395 | -4/Hub_04(d) | Identified EMDS (x2) 18416 | -4/Hub_04(d) | High security lockdown imminent 18436 | -4/Hub_04(d) | Found Prototype Device 18436 | -4/Hub_04(d) | Identified Exp. Phase Shifter 18445 | -4/Hub_04(d) | Found EMDS 18453 | -4/Hub_04(d) | Found EMDS 18459 | -4/Hub_04(d) | Spotted B-86 Titan 18484 | -4/Hub_04(d) | Entered Research 18484 | -3/Research | Evolved 2 slots: Utility x2 18485 | -3/Research | Identified exit to Armory 18499 | -3/Research | Identified Exp. Hacking Suite 18556 | -3/Research | Repaired Centrium Heavy Treads 18671 | -3/Research | Repaired Cmb. Linear Gravjet 18726 | -3/Research | Repaired Centrium Medium Armor Plating 18734 | -3/Research | First assault squad dispatched 18740 | -3/Research | Repaired Lrg. Storage Unit 18780 | -3/Research | Build established: Scavenger-Skirmisher 19103 | -3/Research | Destroyed 15 combat bots 19109 | -3/Research | Lost 8 parts (3n3u2w) 19189 | -3/Research | Discovered new exit (range 4) 19385 | -3/Research | Core integrity fell below 50% 19532 | -3/Research | Identified exit to Testing 19896 | -3/Research | Lost 4 parts (1p1n2u) 20004 | -3/Research | Build established: Scavenger-Mutant 20094 | -3/Research | Core integrity fell below 20% 20123 | -3/Research | Entered Testing 20158 | -3/Testing | Central database locked down 20205 | -3/Testing | Repaired Exp. Sensor Array? 20215 | -3/Testing | System corruption reached 10% 20312 | -3/Testing | Found Enh. Force Lance 20340 | -3/Testing | Fabricated Exp. Propulsion Shielding? 20351 | -3/Testing | Found Prototype Energy Cannon 20373 | -3/Testing | First assault squad dispatched 20464 | -3/Testing | Found Prototype Reactor 20464 | -3/Testing | Identified Zero-point Reactor 20466 | -3/Testing | Found Zero-point Reactor 20537 | -3/Testing | Repaired Lrg. Storage Unit 20551 | -3/Testing | Repaired Lrg. Storage Unit 20587 | -3/Testing | Repaired Impulse Thruster Array 20670 | -3/Testing | Discovered new exit (range 15) 20757 | -3/Testing | Found Prototype Device 20904 | -3/Testing | Fabricated Nanoactuators (x2) 20930 | -3/Testing | Found Prototype Ballistic Cannon 20939 | -3/Testing | Identified exit to Research 20940 | -3/Testing | Entered Research 20940 | -2/Research | Warlord forces began assault on 0b10 20940 | -2/Research | Evolved 2 slots: Utility x2 20942 | -2/Research | Identified Imp. Potential Cannon 20944 | -2/Research | Identified Perforator 20945 | -2/Research | Identified AEGIS Remote Shield 21002 | -2/Research | Identified exit to Quarantine 21036 | -2/Research | Fabricated Exp. Utility Shielding? 21050 | -2/Research | Research machine network offline 21056 | -2/Research | Spotted B-90 Cyclops 21259 | -2/Research | Borebot progress halted 21309 | -2/Research | Met up with Warlord 21318 | -2/Research | Discovered new exit (range 22) 21336 | -2/Research | Took control of God Mode 21336 | -2/Research | Attacked by Warlord forces 21337 | -2/Research | Attacked by Warlord 21337 | -2/Research | Spotted 7X-97Z(K) 21337 | -2/Research | Spotted NB-DSX(K) 21345 | -2/Research | Spotted 4G-CNR(H) 21374 | -2/Research | Spotted 9C-TOD(B) 21423 | -2/Research | Destroyed 7X-97Z(K) 21455 | -2/Research | Destroyed Warlord 21457 | -2/Research | Warlord destroyed during the assault 21520 | -2/Research | Entered Quarantine 21574 | -2/Quarantine | Cryocooling Duct disabled 21589 | -2/Quarantine | Ambient heat levels rising (+20) 21589 | -2/Quarantine | Non-combat units ordered to evacuate 21631 | -2/Quarantine | Repaired Impulse Thruster Array 21673 | -2/Quarantine | Repaired Gravity Neutralizing Apparatus 21714 | -2/Quarantine | Repaired Exp. Utility Shielding 21732 | -2/Quarantine | Found Prototype Processor 21732 | -2/Quarantine | Identified Exp. Signal Interpreter 21791 | -2/Quarantine | Central database locked down 21801 | -2/Quarantine | Found Alien Artifact 21913 | -2/Quarantine | Identified Subatomic Replicator 21954 | -2/Quarantine | Found Alien Artifact 21969 | -2/Quarantine | Identified Core Reset Matrix 21969 | -2/Quarantine | Used Core Reset Matrix 21973 | -2/Quarantine | Detected hypermatrix surge 21973 | -2/Quarantine | Sensed 6 artifacts in vicinity 22036 | -2/Quarantine | Found Core Cannon 22119 | -2/Quarantine | Found Sigix Broadsword 22396 | -2/Quarantine | Build established: Hacker-Mutant 22467 | -2/Quarantine | Found Stasis Generator 22631 | -2/Quarantine | Met incapacitated Sigix Warrior 22631 | -2/Quarantine | Lockdown squad dispatched 22706 | -2/Quarantine | Destroyed Lightning 22709 | -2/Quarantine | Destroyed Lightning 22718 | -2/Quarantine | Destroyed Lightning 22773 | -2/Quarantine | Found Prototype Device 22773 | -2/Quarantine | Identified EM Dispersion Field 22798 | -2/Quarantine | Found Exp. Phase Shifter 23046 | -2/Quarantine | Found Prototype Energy Cannon 23050 | -2/Quarantine | Found EM Dispersion Field 23257 | -2/Quarantine | Discovered new exit (range 8) 23296 | -2/Quarantine | Spotted Fortress 23323 | -2/Quarantine | Discovered new exit (range 5) 23324 | -2/Quarantine | Identified exit to Section 7 23324 | -2/Quarantine | Entered Section 7 23325 | -2/Section 7 | Sensed 19 artifacts in vicinity 23418 | -2/Section 7 | Repaired Exp. Utility Shielding 23483 | -2/Section 7 | Used Subatomic Replicator on Chronowheel, triggered subspace vortex 23483 | -2/Section 7 | Spotted S7 Guard 23483 | -2/Section 7 | Destroyed S7 Guard 23557 | -2/Section 7 | Discovered new exit (range 13) 23574 | -2/Section 7 | First assault squad dispatched 23659 | -2/Section 7 | Central database locked down 23670 | -2/Section 7 | Identified EMDS 23703 | -2/Section 7 | Found Transdimensional Reconstructor 23715 | -2/Section 7 | Found Matter Drive 23844 | -2/Section 7 | Spotted B-99 Colossus 23860 | -2/Section 7 | Found Core Expander 23860 | -2/Section 7 | Installed Core Expander, added new Power slot 23873 | -2/Section 7 | Found LRC Energy Well 23873 | -2/Section 7 | Installed LRC Energy Well, increased energy storage capacity (+250) 23876 | -2/Section 7 | Found LRC Boosters 23876 | -2/Section 7 | Installed LRC Boosters, increased mass support (+10) 23878 | -2/Section 7 | Found LRC Insulator 23878 | -2/Section 7 | Installed LRC Insulator, gained EM resistance (25) 24029 | -2/Section 7 | Identified exit to Access 24029 | -2/Section 7 | Entered Access 24029 | -1/Access | Evolved 2 slots: Utility x2 24288 | -1/Access | Garrison activated, responded to threat 24356 | -1/Access | Repaired Plasma Lance 24401 | -1/Access | Repaired Exp. Propulsion Shielding? 24773 | -1/Access | Spotted B-99 Colossus 24976 | -1/Access | Central database locked down 24981 | -1/Access | Discovered new exit (range 8) 25100 | -1/Access | Fabricated Adv. Force Booster? 25131 | -1/Access | Local fabrication network quarantined 25153 | -1/Access | Fabricated Plasma Lance (x1) 25171 | -1/Access | Fabricated Femtoactuators? 25192 | -1/Access | Repaired Exp. Utility Shielding 25217 | -1/Access | Repaired Impulse Thruster Array 25279 | -1/Access | First assault squad dispatched 25295 | -1/Access | Found Prototype Processor 25349 | -1/Access | Identified exit to Command 25349 | -1/Access | Entered Command 25390 | -1/Command | Identified Exp. Target Analyzer 25504 | -1/Command | Phase Generator disabled 25535 | -1/Command | Build established: Wizard-Sprinter 25611 | -1/Command | Repaired Exp. Propulsion Shielding 25733 | -1/Command | Spotted Combat Programmer 25736 | -1/Command | Destroyed Combat Programmer 25737 | -1/Command | Spotted Combat Programmer 25750 | -1/Command | Destroyed Combat Programmer 25777 | -1/Command | Spotted M Guard 25779 | -1/Command | Destroyed M Guard 25781 | -1/Command | Found Prototype Launcher 25783 | -1/Command | Found Zero-point Reactor 25983 | -1/Command | Destroyed M Guard 25983 | -1/Command | All MAIN.C guards destroyed 26068 | -1/Command | Disengaged cave seal 26121 | -1/Command | Repaired Exp. Utility Shielding 26148 | -1/Command | Repaired Exp. Propulsion Shielding 26172 | -1/Command | Disengaged cave seal 26172 | -1/Command | Assembled emerged from the dark tunnel 26246 | -1/Command | Found Zero-point Reactor 26255 | -1/Command | Found Prototype Protection 26292 | -1/Command | Met MAIN.C 26297 | -1/Command | 0b10 Conduit disabled 26307 | -1/Command | Allies destroyed MAIN.C Shell 26308 | -1/Command | MAIN.C activated Command garrisons 26321 | -1/Command | Destroyed MAIN.C 26714 | -1/Command | Build established: Scavenger-Sprinter 27310 | -1/Command | Found Exp. Core Analyzer 27444 | -1/Command | Spotted B-99 Colossus 27481 | -1/Command | Allies destroyed B-99 Colossus 27524 | -1/Command | Discovered new exit (range 17) 27578 | -1/Command | Build established: Scavenger-Scout 28229 | -1/Command | Discovered new exit (range 7) 28298 | -1/Command | Found Zero-point Reactor 28302 | -1/Command | Found Prototype Processor 28302 | -1/Command | Identified Exp. Melee Analysis Suite 28305 | -1/Command | Found Prototype Device 28305 | -1/Command | Identified Adv. Kinecellerator 28315 | -1/Command | Found Prototype Device 28315 | -1/Command | Identified Beam Splitter 28431 | -1/Command | Found Prototype Protection 28491 | -1/Command | Identified Exp. Powered Armor 28503 | -1/Command | Found Prototype Protection 28521 | -1/Command | Spotted B-99 Colossus 28590 | -1/Command | Destroyed B-99 Colossus 28719 | -1/Command | Warped through subspace to slip node 28719 | -1/Command | Discovered new exit (range 5) 28743 | -1/Command | Entered Access_0 28744 | -1/Access_0 | Sensed 4 artifacts in vicinity 28744 | -1/Access_0 | Met Architect 28748 | -1/Access_0 | Architect warped through subspace 28815 | -1/Access_0 | Architect warped through subspace 28843 | -1/Access_0 | Found Prototype Device 28843 | -1/Access_0 | Identified Exp. Weapon Cycler 28850 | -1/Access_0 | Architect warped through subspace 28859 | -1/Access_0 | Destroyed A8 28869 | -1/Access_0 | Found Exp. Phase Shifter 28885 | -1/Access_0 | Found Integrity Redistributor 28885 | -1/Access_0 | Used Integrity Redistributor, redistributed integrity from core (-166) 28892 | -1/Access_0 | Architect warped through subspace 28924 | -1/Access_0 | Architect warped through subspace 28966 | -1/Access_0 | Core integrity fell below 50% 28971 | -1/Access_0 | Architect warped through subspace 29031 | -1/Access_0 | Architect warped through subspace 29042 | -1/Access_0 | Found Integrated Dissipator 29042 | -1/Access_0 | Installed Integrated Dissipator, increased core heat dissipation (+20) 29043 | -1/Access_0 | Lost 5 parts (1p4u) 29046 | -1/Access_0 | Found Exp. Phase Shifter 29047 | -1/Access_0 | Found Prototype Processor 29047 | -1/Access_0 | Identified Exp. Targeting Computer 29056 | -1/Access_0 | Subspace Access Node disabled 29081 | -1/Access_0 | Architect warped through subspace 29110 | -1/Access_0 | A6 warped into view 29117 | -1/Access_0 | Destroyed A6 29131 | -1/Access_0 | Architect warped through subspace 29147 | -1/Access_0 | Found Prototype Protection 29180 | -1/Access_0 | Architect warped through subspace 29246 | -1/Access_0 | Emitted hypermatrix ping 29251 | -1/Access_0 | Assembled emerged from beneath the floor 29264 | -1/Access_0 | Architect warped through subspace 29275 | -1/Access_0 | Build established: Scavenger-Sprinter 29282 | -1/Access_0 | Destroyed A2 29283 | -1/Access_0 | Extracted Singularity Gate Test 138-C access codes from A2's data core 29313 | -1/Access_0 | Architect warped through subspace 29393 | -1/Access_0 | Architect warped through subspace 29418 | -1/Access_0 | A5 warped into view 29436 | -1/Access_0 | Destroyed A5 29478 | -1/Access_0 | Architect warped through subspace 29540 | -1/Access_0 | Architect warped through subspace 29571 | -1/Access_0 | Found Hpw. Transdimensional Reconstructor 29583 | -1/Access_0 | Architect warped through subspace 29624 | -1/Access_0 | Architect warped through subspace 29660 | -1/Access_0 | Architect warped through subspace 29679 | -1/Access_0 | A4 warped into view 29686 | -1/Access_0 | Architect warped through subspace 29708 | -1/Access_0 | Core integrity fell below 20% 29739 | -1/Access_0 | Architect warped through subspace 29772 | -1/Access_0 | Subspace Access Node disabled 29777 | -1/Access_0 | Lost 4 parts (1p2u1w) 29784 | -1/Access_0 | Subspace Access Node disabled 29790 | -1/Access_0 | Warped through subspace to slip node 29790 | -1/Access_0 | Discovered new exit (range 8) 29797 | *** | Heading to fleet! Last Messages --------------- 29734_ Destroyed Zero-point Reactor. 29734_ Penetrated by Quantum Shear. 29736_ Beam penetrates Architect. 29736_ Architect suffers critical hit. 29736_ Destroyed Exp. Phase Shifter. 29737_ Penetrated by Quantum Shear. 29737_ Imp. Quantum Reactor destroyed. 29738_ Beam penetrates Architect. Architect warps through subspace. 29742_ System corrupted: Plasma Lance targeting data glitched. 29746_ Plasma Lance destroyed. 29746_ Knocked back. 29772_ Subspace Access Node disabled. 29777_ Quantum Shear penetrates Wall. 29784_ Subspace Access Node disabled. 29789_ Knocked back. 29790_ Inertial Stasis Machine destroyed. 29790_ Lrn. Terrain Scanner destroyed. 29790_ Warped through subspace, drawn to slip node. 29790_ EXIT=FOUND Map ----- +----------------------------------------------------+ | | | | | | | | | | | | | | | | | | | | | | | | | | | | | | | | | ?????????????????????????????????????????????????? | | ?????????????????????????????????????????????????? | | ?????????????????????????????????????????????????? | | ?????????????????????????????????????????????????? | | ?????????????????????????????????????????????????? | | ?????????????????????????????????????????????????? | | ????????????????????????###??????????????????????? | | ???????????????????????## ##?????????????????????? | | ???????????????????????# #?????????????????????? | | ???????????????????????# @ #?????????????????????? | | ??????????????????????## #?????????????????????? | | ??????????????????????# #?????????????????????? | | ??????????????????????# ##?????????????????????? | | ??????????????????????## #?????????????????????? | | ??????????????????????# #?????????????????????? | | ??????????????????????# ##?????????????????????? | | ??????????????????????# < #?????????????????????? | | ??????????????????????# ##?????????????????????? | | ??????????????????????## #??????????????????????? | | ???????????????????????####??????????????????????? | | ?????????????????????????????????????????????????? | | ?????????????????????????????????????????????????? | | ?????????????????????????????????????????????????? | | ?????????????????????????????????????????????????? | | ?????????????????????????????????????????????????? | | ?????????????????????????????????????????????????? | | ?????????????????????????????????????????????????? | | ?????????????????????????????????????????????????? | | ?????????????????????????????????????????????????? | | ?????????????????????????????????????????????????? | | ????????????????????????????????????????????#??#?? | | ??????????????????????????????????????????##?????? | | ????????????????????????????????????????????????## | | ????????????????????????????????????????#???#?#?## | +----------------------------------------------------+ Best States ------------- Heat Dissipation 103 Coolant Potential 120 Energy Generation 122 Energy Capacity 1700 Matter Stores 700 Matter Capacity 700 Sight Range 22 Robot Scan Range 30 Terrain Scan Range 24 Terrain Scan Density 210 ECM Strength 5 Jamming Range 16 Power Amplification 80 Additional Mass Support 44 Armor Coverage 2400 Resistance: KI 30 Resistance: TH 75 Resistance: EM 100 Propulsion Shielding 90 Utility Shielding 90 Weapon Shielding 66 Weapon Cycling 30 Melee Speed Boost 50 Phase Shifting 20 Evasion (%) 97 Targeting Accuracy 12 Melee Accuracy 18 Target Analysis 12 Core Analysis 15 Armor Integrity Analysis 66 Recoil Reduction 3 Matter Filtering 50 Kinecelleration 50 Force Boost 5 Offensive Hacking 48 Defensive Hacking 46 Item Schematics ----------------- Exp. Propulsion Shielding | -2/Section 7 | Scanalyzed Exp. Utility Shielding | -2/Section 7 | Scanalyzed Adv. Force Booster | -1/Access | Hacked Femtoactuators | -1/Access | Hacked Plasma Lance | -1/Access | Hacked Exp. Weapon Shielding | -1/Access | Hacked Robot Schematics ------------------ None Fabricated ------------ Exp. Cesium-ion Thruster | x1 | -6/Factory Exp. Cesium-ion Thruster | x1 | -6/Factory Cmb. Antigrav System | x2 | -5/Factory Cmb. Antigrav System | x2 | -5/Factory Exp. Sensor Array | x1 | -5/Factory Cmb. Antigrav System | x2 | -4/Factory Combat Drone Bay | x1 | -4/Factory Exp. Propulsion Shielding | x1 | -3/Testing Nanoactuators | x2 | -3/Testing Exp. Utility Shielding | x1 | -2/Research Adv. Force Booster | x2 | -1/Access Plasma Lance | x1 | -1/Access Femtoactuators | x1 | -1/Access Alien Tech Used ----------------- Core Reset Matrix Sigix Broadsword Core Cannon Subatomic Replicator Core Expander LRC Energy Well LRC Boosters LRC Insulator Transdimensional Reconstructor Stasis Generator Integrity Redistributor Matter Drive Integrated Dissipator High-powered Transdimensional Reconstructor Achievements -------------- None Challenges ------------ None Game ------ Seed SlugImprovedGuard Manual? 0 Play Time 08:11:46 Cumulative 969.3 hours Start 2020.09.26 @ 16:54:13 End 2020.09.29 @ 13:41:11 Sessions 26 Manual Loads 0 Difficulty Rogue Special Mode None Game No. 293 Rogue 293 Adventurer 0 Explorer 0 Win Type 2 Total 65 Types 42/4/7/5/4/1/1/1/0 Lore% 98 Gallery% 98 Achievement% 98 Wizard Run 0 Options --------- ASCII 0 Keyboard 1 Movement Numpad Keybinds 0 Fullscreen 1 Font 18/SmallcapsGlow Map View 76x50 Tactical HUD 1 Map Filters NONE Filters NONE Steam 1 RUN: 30873a36-985c-4ca9-b45e-be65be2c60aa